{"text_format":"1","workbook":"xlsx","n_sheets":4,"sheets":["Υπολογισμός","Κ.Υ.Α.","Βήματα διαδικασίας","Συχνές ερωτήσεις απαντήσεις"],"not_rendered":{"charts":0,"images":1,"macros":1,"external_links":0,"defined_names":2,"comments":1,"pivot_tables":0},"unopened":[],"bounds":{"document_bytes":16777216,"sheet_cells":100000,"rows_first":2000,"rows_last":500,"rows_between":2000,"halvings":0,"cell_chars":16384,"cell_head_chars":4096},"cells_cut":0,"cells_raw":0,"read":"whole","date_system":"1900"}

{"sheet":"Υπολογισμός","index":0,"n_rows":33,"n_cols":18,"rows_kept":33,"cut":false,"hidden":false,"merged":[[22,1,22,4],[23,2,23,3],[15,2,15,4],[1,2,1,4]]}
[]
[null,null,"Υπολογισμός κοινωνικού μερίσματος 2018",null,null,null,null,null,"Εν","Αν",null,null,"Κλίμακα ισοδυναμίας ωφελούμενης μονάδας:","1ος ενήλικας:",1]
[null,null,"Πληροφοριακά στοιχεία",null,null,null,null,0,0,0,null,null,null,"Επιπλέον ενήλικοι:",0.5]
[null,null,null,"Δεδομένα","Ισοδυναμία ωφελούμενης μονάδας",null,null,1,1,0.25,null,null,null,"Ανήλικοι:",0.25]
[null,null,"Συνολικό εισόδημα ωφελούμενης μονάδας:",5800,"Στάθμιση",null,null,2,1.5,0.5]
[null,null,"Ενήλικα μέλη μονάδας:",1,{"$f":"IF(D6>1,ROUND(1+(0.5*(D6-1)),2),ROUND((D6*1),2))","v":1},null,null,3,2,0.75,null,null,"Ποσό εισοδηματικής ενίσχυσης:","Κατηγορία","Ποσό (€)","Ισοδύναμο εισόδημα (€)"]
[null,null,"Ανήλικα μέλη μονάδας (έως 18 ετών):",0,{"$f":"ROUND(0.25*D7,2) +E28","v":0},null,null,4,2.5,1,null,null,null,"1η",400,5000]
[null,null,"Σύνολο μελών μονάδας:",{"$f":"D7+D6","v":1},{"$f":"SUM(E6:E7)","v":1},{"$f":"D7+D6","v":1},null,5,3,1.25,null,null,null,"2η",300,7000]
[null,null,"Σύνολο μελών μονάδας με αναπηρία 67% και άνω:",0,{"$f":"IF(D9>=D8,ROUND((D8*0.5),2),ROUND((D9*0.5),2))","v":0},null,null,6,3.5,1.5,null,null,null,"3η",200,9000]
[null,null,"Ισχύουσα μέγιστη κλίμακα ισοδυναμίας:",null,{"$f":"IF(E8+E9>3,3,E8+E9)","v":1},null,null,7,4,1.75]
[null,null,"Ισοδύναμο εισόδημα:",{"$f":"IF((D8<>0),D5/E10,0)","v":5800},{"$f":"IF(D21<>0,\"Πληροί το κριτήριο\",\"Δεν πληροί το κριτήριο\")","v":"Πληροί το κριτήριο"},{"$f":"IF(D21<>0,0,1)","v":0},null,8,4.5,2,null,null,"Περιουσιακά κριτήρια:","Σύνολο μελών","Αξία ακινήτων (€)"]
[null,null,"Κλίμακα ισοδυναμίας:",{"$f":"E10","v":1},null,null,null,9,5,2.25,null,null,null,1,120000]
[null,null,"Συνολική αξία ακίνητης περιουσίας μονάδας:",null,{"$f":"IF(Αξία_ακίνητης_περιουσίας<=O29,\"Πληροί το κριτήριο\",\"Δεν πληροί το κριτήριο\")","v":"Πληροί το κριτήριο"},{"$f":"IF(D13<=O29,0,1)","v":0},null,10,5.5,2.5,null,null,null,2,145000]
[null,null,"Συνολικό ποσό κινητής περιουσίας μονάδας:",{"$f":"C28","v":0},{"$f":"IF(D14>ROUND((9000*E10),2),\"Δεν πληροί το κριτήριο\",\"Πληροί το κριτήριο\")","v":"Πληροί το κριτήριο"},{"$f":"IF(D14>ROUND((9000*E10),2),1,0)","v":0},null,11,6,2.75,null,null,null,3,165000]
[null,null,"Συνολικοί ετήσιοι τόκοι μονάδας:",null,{"$f":"IF(D15>(9000*E10*0.42%),\"Δεν πληροί το κριτήριο\",\"Πληροί το κριτήριο\")","v":"Πληροί το κριτήριο"},{"$f":"IF(D15>=(9000*E10*0.42%),1,0)","v":0},null,null,null,null,null,null,null,4,185000]
[null,null,null,null,null,null,null,null,null,null,null,null,null,5,185000]
[null,null,"Τελικό κριτήριο δικαιούχου:",{"$f":"IF(F11+F13+F14+F15>0,\"Δεν το δικαιούστε\",\"Το δικαιούστε\")","v":"Το δικαιούστε"},null,null,null,null,null,null,null,null,null,6,185000]
[null,null,null,null,null,null,null,null,null,null,null,null,null,7]
[null,null,null,null,null,null,null,null,null,null,null,null,null,8]
[null,null,null,null,null,null,null,null,null,null,null,null,null,9]
[null,null,"Εισοδηματική κατηγορία μονάδας:",{"$f":"F21","v":2},{"$f":"IF((F21<>0),\"η\",\"\")","v":"η"},{"$f":"IF(D11<=5000,1,IF(AND(D11>5000,D11<=7000),2,IF(AND(D11>7000,D11<=9000),3,0)))","v":2}]
[]
[null,null,null,null,null,null,null,null,null,null,null,null,"νοικοκυριά","δικ ποσό"]
[null,null,"Δικαιούμενο συνολικό ποσό μερίσματος ωφελούμενης μονάδας:",null,{"$f":"F24","v":300},300,null,null,null,null,null,null,1,400,5000,120000,9000,3.0999999999999999E-3]
[null,null,null,null,null,null,null,null,null,null,null,null,1,300,7000,120000,9000,3.0999999999999999E-3]
[null,null,null,null,null,null,null,null,null,null,null,null,1,200,9000,120000,9000,3.0999999999999999E-3]
[]
[null,null,{"$f":"ROUND((D15/0.31%),2)","v":0},null,{"$f":"IF(AND(D6=1,D7<>0),0.25,0)","v":0}]
[null,null,null,null,null,null,null,null,null,null,null,null,null,null,125000]
[]
[null,null,null,null,null,null,null,null,null,null,null,1,"1η",400,5000]
[null,null,null,null,null,null,null,null,null,null,null,2,"2η",300,7000]
[null,null,null,null,null,null,null,null,null,null,null,3,"3η",200,9000]

{"sheet":"Κ.Υ.Α.","index":1,"n_rows":221,"n_cols":4,"rows_kept":221,"cut":false,"hidden":false,"merged":[[218,0,220,0],[218,1,220,1],[209,0,211,0],[209,1,211,1],[212,0,214,0],[212,1,214,1],[215,0,217,0],[215,1,217,1],[200,0,202,0],[200,1,202,1],[203,0,205,0],[203,1,205,1],[206,0,208,0],[206,1,208,1],[197,0,199,0],[197,1,199,1],[193,0,193,1],[193,2,193,3],[194,0,196,0],[194,1,196,1],[194,3,196,3]]}
[]
["Κ.Υ.Α. 2/89338/ΔΛΓΚ/2018 Καθορισμός των όρων και των προϋποθέσεων διανομής του Κοινωνικού Μερίσματος έτους 2018"]
[]
["(Καθορισμός των όρων και των προϋποθέσεων διανομής του Κοινωνικού Μερίσματος έτους 2018)"]
[]
["Κατηγορία: Κοινωνική αλληλεγγύη - Πρόνοια"]
[]
["Αριθμ. οικ. 2/89338/ΔΛΓΚ/05-12-2018"]
[]
["(ΦΕΚ Β' 5456/05-12-2018)"]
[]
["ΟΙ ΥΠΟΥΡΓΟΙ ΕΡΓΑΣΙΑΣ, ΚΟΙΝΩΝΙΚΗΣ ΑΣΦΑΛΙΣΗΣ ΚΑΙ ΚΟΙΝΩΝΙΚΗΣ ΑΛΛΗΛΕΓΓΥΗΣ ΟΙΚΟΝΟΜΙΚΩΝ"]
[]
["Έχοντας υπόψη:"]
[]
["1. Τις διατάξεις του άρθρου 26 του ν. 4579/2018 «Υποχρεώσεις αερομεταφορέων σχετικά με τα αρχεία επιβατών προσαρμογή της νομοθεσίας στην Οδηγία (ΕΕ) 2016/681» (Α' 201)."]
[]
["2. Τις διατάξεις του ν. 4270/2014 «Αρχές δημοσιονομικής διαχείρισης και εποπτείας (ενσωμάτωση της Οδηγίας 2011/85/ΕΕ) δημόσιο λογιστικό και άλλες διατάξεις» (Α' 143)."]
[]
["3. Τις διατάξεις του ν. 4389/2016 (Α' 94)."]
[]
["4. Τις διατάξεις του ν. 4174/2013 «Φορολογικές διαδικασίες και άλλες διατάξεις» (Α' 170)."]
[]
["5. Τις διατάξεις του ν.δ. 356/1974 «Κώδικας Εισπράξεως Δημοσίων Εσόδων» (Α' 90)."]
[]
["6. Τις διατάξεις του ν. 3607/2007 «Σύσταση και καταστατικό της Ηλεκτρονικής Διακυβέρνησης Κοινωνικής Ασφάλισης ΑΕ (Η.ΔΙ.ΚΑ. Α.Ε.) και λοιπές ασφαλιστικές και οργανωτικές διατάξεις» (Α' 245)."]
[]
["7. Τις διατάξεις του π.δ. 80/2016 «Ανάληψη υποχρεώσεων από τους διατάκτες» (Α' 145)."]
[]
["8. Τις διατάξεις του άρθρου 90 του «Κώδικα Νομοθεσίας για την Κυβέρνηση και τα κυβερνητικά όργανα», που κυρώθηκε με το άρθρο πρώτο του π.δ. 63/2005 (Α' 98)."]
[]
["9. Τις διατάξεις του π.δ. 73/2015 «Διορισμός Αντιπροέδρου της Κυβέρνησης, Υπουργών, Αναπληρωτών Υπουργών και Υφυπουργών» (Α' 116)."]
[]
["10. Τις διατάξεις του π.δ. 125/2016 «Διορισμός Υπουργών, Αναπληρωτών Υπουργών και Υφυπουργών (Α' 210)."]
[]
["11. Την ΥΠΟΙΚ 0010218 ΕΞ 2016/14.11.2016 απόφαση του Πρωθυπουργού και Υπουργού Οικονομικών «Ανάθεση αρμοδιοτήτων στην Υφυπουργό Οικονομικών Αικατερίνη Παπανάτσιου» (Β' 3696)."]
[]
["12. Την Υ29/2015 (Β' 2168) απόφαση του Πρωθυπουργού «Ανάθεση αρμοδιοτήτων στον Αναπληρωτή Υπουργό Οικονομικών Γεώργιο Χουλιαράκη»."]
[]
["13. Την αριθμ. 2/87435/29.11.2018 εισήγηση της Διεύθυνσης Προϋπολογισμού Γενικής Κυβέρνησης της Γενικής Διεύθυνσης Προϋπολογισμού και Δημοσιονομικής Πολιτικής του Γενικού Λογιστηρίου του Κράτους."]
[]
["14. Το γεγονός ότι από την παρούσα απόφαση προκαλείται εφάπαξ δαπάνη σε βάρος του κρατικού προϋπολογισμού, το ύψος της οποίας εξαρτάται από πραγματικά γεγονότα (πλήθος δικαιούχων) και ανέρχεται στο ποσό των επτακοσίων δέκα εκατομμυρίων (710.000.000) ευρώ. Η εν λόγω δαπάνη θα καλυφθεί από τις πιστώσεις που έχουν εγγραφεί στον προϋπολογισμό εξόδων του Υπουργείου Οικονομικών υπό Ειδικό Φορέα 23-200 «Γενικές Κρατικές Δαπάνες», ΚΑΕ 2762 «Δαπάνη χορήγησης κοινωνικού μερίσματος». Προκαλείται επίσης δαπάνη για την αμοιβή της ΔΙΑΣ Α.Ε., ύψους περίπου εβδομήντα δύο χιλιάδων (72.000) ευρώ, που θα καλυφθεί από τις εγγεγραμμένες πιστώσεις του προϋπολογισμού εξόδων του Υπουργείου Οικονομικών, υπό Ειδικό Φορέα 23-200 «Γενικές Κρατικές Δαπάνες» και ΚΑΕ 0874 «Αμοιβές και προμήθειες τραπεζών και πιστωτικών ιδρυμάτων»."]
[]
["15. Την ΔΟΔΑ 0014368 ΕΞ 2018/04.12.2018 απόφαση ανάληψης υποχρέωσης στον προϋπολογισμό του Υπουργείου Οικονομικών τρέχοντος έτους και ειδικότερα στον Ε.Φ 23-200 και ΚΑΕ 0874 για κάλυψη της δαπάνης αμοιβής της ΔΙΑΣ Α.Ε. (καταχώριση με α/α 105389 στο Βιβλίο Εγκρίσεων και Εντολών Πληρωμής και ΑΔΑ ΨΕ3ΙΗ-4ΣΦ)."]
[]
["16. Το γεγονός ότι η ειδική εντολή πληρωμής του άρθρου 4 παρ. 4 επέχει θέση απόφασης ανάληψης υποχρέωσης,"]
[]
["αποφασίζουμε:"]
[]
["Καθορίζουμε τα κριτήρια εισοδήματος, περιουσίας, διαμονής, καθώς και λοιπά κριτήρια για την εφάπαξ καταβολή του κοινωνικού μερίσματος έτους 2018, τις κατηγορίες των δικαιούχων, τη βάση, τον τρόπο υπολογισμού και το ύψος της παροχής ανά κατηγορία δικαιούχων, τις προϋποθέσεις, τον φορέα, τη διαδικασία, τον χρόνο και τρόπο καταβολής, τον χρόνο και τρόπο ελέγχου των εισοδηματικών, περιουσιακών και των λοιπών κριτηρίων για τη χορήγησή του, καθώς και κάθε άλλη αναγκαία λεπτομέρεια για την εφαρμογή του άρθρου 26 του ν. 4579/2018 (Α' 201), που αφορά στη διανομή του κοινωνικού μερίσματος, ως ακολούθως: "]
[]
["Άρθρο 1"]
["Ορισμοί"]
[]
["Ωφελούμενη μονάδα: το νοικοκυριό, απαρτιζόμενο από όλα τα εν ζωή κατά την υποβολή της αίτησης άτομα που διαμένουν κάτω από την ίδια στέγη, συμπεριλαμβανομένων και των φιλοξενούμενων ατόμων, όπως προκύπτει από τις δηλώσεις φορολογίας εισοδήματος του φορολογικού έτους 2017. Στην ωφελούμενη μονάδα εντάσσονται υποχρεωτικά και τα ενήλικα τέκνα έως 25 ετών που φοιτούν σε πανεπιστημιακές σχολές ή σχολεία ή ινστιτούτα επαγγελματικής εκπαίδευσης ή κατάρτισης, ανεξαρτήτως του τόπου διαμονής τους."]
["Τα άτομα που έχουν δηλώσει ότι φιλοξενούνται από φυσικά πρόσωπα στις δηλώσεις φορολογίας εισοδήματος του φορολογικού έτους 2017, δεν έχουν ίδιο δικαίωμα στην καταβολή κοινωνικού μερίσματος και προσμετρώνται υποχρεωτικά στη φιλοξενούσα μονάδα."]
[]
["Ίδιο δικαίωμα στην καταβολή κοινωνικού μερίσματος έχουν επίσης όσοι διαβιούν στον δρόμο ή σε ακατάλληλα καταλύματα."]
[]
["Δικαιούχος: το ενήλικο άτομο που υποβάλλει αίτηση για λογαριασμό της ωφελούμενης μονάδας, η οποία έχει κριθεί και πληροί τα κριτήρια ένταξης στο πρόγραμμα. Κατ' εξαίρεση στα νοικοκυριά, στα οποία όλα τα μέλη φιλοξενούνται από ανήλικο άτομο, δικαιούχος καθίσταται αυτόματα ο πρώτος ενήλικος φιλοξενούμενος."]
[]
["Ανήλικα μέλη: τα μέλη της ωφελούμενης μονάδας έως 18 ετών."]
[]
["Συνολικό εισόδημα ωφελούμενης μονάδας: το συνολικό, πραγματικό ή τεκμαρτό, εισόδημα από κάθε πηγή ημεδαπής και αλλοδαπής προέλευσης προ φόρων, μετά την αφαίρεση των εισφορών για κοινωνική ασφάλιση όλων των μελών της ωφελούμενης μονάδας, όπως προκύπτει από τις δηλώσεις φορολογίας εισοδήματος του φορολογικού έτους 2017."]
["Στο συνολικό εισόδημα της ωφελούμενης μονάδας συμπεριλαμβάνεται το σύνολο των επιδομάτων και των κάθε μορφής χρηματικών μεταβιβάσεων, καθώς και το σύνολο των εισοδημάτων που απαλλάσσονται από το φόρο ή φορολογούνται με ειδικό τρόπο."]
[]
["Ειδικά για όσους έχουν συμπληρώσει στις 30.11.2018 τουλάχιστον έξι (6) μήνες συνεχόμενης ανεργίας εντός του τρέχοντος έτους (2018), όπως αυτό προκύπτει από τα Μητρώα ανέργων του Οργανισμού Ασφάλισης Εργατικού Δυναμικού (ΟΑΕΔ), του NAT και του ΕΤΑΠ-ΜΜΕ δεν λαμβάνεται υπόψη τυχόν ατομικό εισόδημα του φορολογικού έτους 2017 από μισθωτή εργασία έως το ύψος των 9.000 ευρώ, προσαυξανόμενο κατά το ποσό των 1.500 ευρώ για κάθε επιπλέον μήνα ανεργίας πέραν των έξι (6) μηνών εντός του έτους 2018. Στον όρο μισθωτή εργασία περιλαμβάνονται επιπλέον και τα εισοδήματα της περ. στ' της παρ. 2 του άρθρου 12 του ν. 4172/2013 (Α' 167), όπως καταγράφονται στους κωδικούς 307-308 του εντύπου Ε1, το άθροισμα καθαρών ποσών από παροχή εργασίας με εργόσημο, όπως καταγράφονται στους κωδικούς 309-310 του εντύπου Ε1, καθώς και τα εισοδήματα από οικοδομικά ένσημα, αυτασφάλιση κ.λπ., όπως καταγράφονται στους κωδικούς 311-312 του εντύπου Ε1."]
[]
["Κλίμακα ισοδυναμίας ωφελούμενης μονάδας: το άθροισμα της στάθμισης που προκύπτει ανάλογα με τη σύνθεση της ωφελούμενης μονάδας και τον αριθμό των μελών της, δίνοντας στάθμιση 1 μονάδα στον πρώτο ενήλικα, 0,5 σε κάθε επιπλέον ενήλικα και 0,25 στα ανήλικα μέλη."]
["Προκειμένου για ωφελούμενη μονάδα με ένα τουλάχιστον πρόσωπο με ποσοστό αναπηρίας 67% και άνω (κωδικοί εντύπου Ε1: 001, 002, 005, 006 905, 906, 913 και 914), η κλίμακα ισοδυναμίας ωφελούμενης μονάδος προσαυξάνεται κατά 0,5 για κάθε ανάπηρο μέλος. Το μέγιστο της κλίμακας ισοδυναμίας δεν επιτρέπεται σε καμία περίπτωση να υπερβαίνει το 3."]
[]
["Προκειμένου για μονογονεϊκά νοικοκυριά που λαμβάνουν το επίδομα παιδιού η κλίμακα ισοδυναμίας ωφελούμενης μονάδας προσαυξάνεται κατά 0,25."]
[]
["Ισοδύναμο εισόδημα ωφελούμενης μονάδας: το εισόδημα που προκύπτει από τη διαίρεση του συνολικού εισοδήματος της ωφελούμενης μονάδας με την αντίστοιχη κλίμακα ισοδυναμίας και το οποίο καθορίζει την επιλεξιμότητά της και το ύψος του κοινωνικού μερίσματος, σύμφωνα με τα οριζόμενα στο άρθρο 2."]
[]
["Ποσό εισοδηματικής ενίσχυσης: το εφάπαξ ποσό των 400 ευρώ για την 1η κατηγορία δικαιούχων, των 300 ευρώ για τη 2η κατηγορία δικαιούχων και των 200 ευρώ για την 3η κατηγορία δικαιούχων, όπως αυτές ορίζονται στο άρθρο 2, πολλαπλασιαζόμενο με την κλίμακα ισοδυναμίας της ωφελούμενης μονάδας (βλ. Παράρτημα Α)."]
[]
["Δηλώσεις φορολογίας εισοδήματος του φορολογικού έτους 2017: Οι εκκαθαρισμένες αρχικές ή τροποποιητικές δηλώσεις φορολογίας εισοδήματος, οι οποίες έχουν υποβληθεί έως 31.10.2018."]
[]
["Άρθρο 2"]
["Κριτήρια ένταξης στο πρόγραμμα"]
[]
["Η ωφελούμενη μονάδα δικαιούται το κοινωνικό μέρισμα εφόσον πληρούνται σωρευτικά τα ακόλουθα κριτήρια εισοδήματος, περιουσίας, διαμονής, καθώς και τα λοιπά κριτήρια της παρ. 3:"]
[]
["1. Εισοδηματικά κριτήρια"]
[]
["Για την καταβολή της εισοδηματικής ενίσχυσης, το ισοδύναμο εισόδημα της ωφελούμενης μονάδας, όπως ορίζεται στο άρθρο 1, δεν πρέπει να υπερβαίνει το ποσό των 9.000 ευρώ. Η ωφελούμενη μονάδα εντάσσεται στην 1η κατηγορία δικαιούχων, εάν το ισοδύναμο εισόδημά της δεν υπερβαίνει το ποσό των 5.000 ευρώ, στη 2η κατηγορία δικαιούχων, εάν το ισοδύναμο εισόδημά της δεν υπερβαίνει το ποσό των 7.000 ευρώ και στην 3η κατηγορία δικαιούχων, εάν το ισοδύναμο εισόδημά της δεν υπερβαίνει το ποσό των 9.000 ευρώ (βλ. Παράρτημα Α)."]
[]
["2. Περιουσιακά κριτήρια α. Ακίνητη περιουσία:"]
[]
["Η συνολική φορολογητέα αξία της ακίνητης περιουσίας όλων των μελών της ωφελούμενης μονάδας, στην Ελλάδα ή στο εξωτερικό, όπως αυτή προσδιορίζεται για τον υπολογισμό του συμπληρωματικού ΕΝ.Φ.Ι.Α. με τις διατάξεις του ν. 4223/2013 (Α' 287) και προκύπτει από την τελευταία εκδοθείσα μέχρι 31.10.2018 πράξη προσδιορισμού φόρου, δεν μπορεί να υπερβαίνει στο σύνολό της το ποσό των 125.000 ευρώ για μονομελή ωφελούμενη μονάδα, προσαυξανόμενη κατά 20.000 ευρώ για κάθε πρόσθετο μέλος και έως του ποσού των 185.000 ευρώ."]
[]
["β. Κινητή περιουσία:"]
[]
["Το συνολικό ύψος των καταθέσεων όλων των μελών της ωφελούμενης μονάδας σε όλα τα πιστωτικά ιδρύματα της χώρας ή του εξωτερικού, ή/και η τρέχουσα αξία μετοχών, ομολόγων κ.τ.λ., όπως προκύπτουν από τις ηλεκτρονικές διασταυρώσεις δεν μπορεί να υπερβαίνει το ποσό των 9.000 ευρώ για μονομελή ωφελούμενη μονάδα, πολλαπλασιαζόμενο με την αντίστοιχη κλίμακα ισοδυναμίας της ωφελούμενης μονάδας ανάλογα με τη σύνθεση αυτής."]
[]
["Το συνολικό ποσό από τόκους καταθέσεων των μελών της ωφελούμενης μονάδας σε όλα τα πιστωτικά ιδρύματα της χώρας ή του εξωτερικού, όπως έχουν δηλωθεί στη δήλωση φορολογίας εισοδήματος (Ε1) του φορολογικού έτους 2017, δεν μπορεί να υπερβαίνει το ποσό που προκύπτει από τον κατωτέρω μαθηματικό τύπο:"]
[]
["Ετήσιος τόκος = 9.000 * κλίμακα ισοδυναμίας ωφελούμενης μονάδας * μέσο ετήσιο καταθετικό επιτόκιο 2017 / 100."]
[]
["γ. Περιουσιακά τεκμήρια:"]
[]
["Εξαιρούνται από τη χορήγηση και δεν κρίνονται δικαιούχοι του κοινωνικού μερίσματος νοικοκυριά, τα μέλη των οποίων, βάσει της δήλωσης φορολογίας εισοδήματος του φορολογικού έτους 2017:"]
["-εμπίπτουν στον φόρο πολυτελούς διαβίωσης."]
["-δηλώνουν δαπάνες για αμοιβές πληρωμάτων σκαφών αναψυχής, όπως αυτές προσδιορίζονται στους κωδικούς 731, 732 του εντύπου Ε1."]
["-δηλώνουν δαπάνες άνω των χιλίων πεντακοσίων (1.500) ευρώ για δίδακτρα σε ιδιωτικά σχολεία, όπως αυτές προσδιορίζονται στον κωδικό 769 του εντύπου Ε1."]
["-δηλώνουν δαπάνες για οικιακούς βοηθούς, οδηγούς αυτοκινήτων, δασκάλους και λοιπό προσωπικό,όπως αυτές προσδιορίζονται στον κωδικό 770 του εντύπου  Ε1."]
[]
["Επιπλέον, εξαιρούνται από τη χορήγηση και δεν κρίνονται δικαιούχοι του κοινωνικού μερίσματος φορολογικοί κάτοικοι αλλοδαπής, οι οποίοι υποχρεούνται να υποβάλουν δήλωση φορολογίας εισοδήματος στην Ελλάδα, καθώς και ο/η σύζυγος αυτών."]
[]
["3. Κριτήριο διαμονής και λοιπά κριτήρια (ασφάλισης, υποβολής φορολογικής δήλωσης κ.λπ.)."]
[]
["Ο δικαιούχος του κοινωνικού μερίσματος πρέπει να διαμένει νόμιμα και μόνιμα στην ελληνική επικράτεια για τα τελευταία πέντε (5) έτη, όπως αυτό προκύπτει από την υποβολή δηλώσεων φορολογίας εισοδήματος κατά την τελευταία πενταετία."]
[]
["Ο δικαιούχος οφείλει να είναι ασφαλισμένος τουλάχιστον μία φορά σε οποιονδήποτε φορέα κύριας ασφάλισης και για χρόνο ασφάλισης μεγαλύτερο του ενός (1) μήνα μέχρι και 31.10.2018, όπως αυτό προκύπτει από το Μητρώο Άμεσα Ασφαλισμένων και Συνταξιούχων του ΕΦΚΑ είτε να είναι συνταξιούχος εξ ιδίου δικαιώματος ή εκ μεταβιβάσεως είτε να λαμβάνει το επίδομα κοινωνικής αλληλεγγύης ανασφάλιστων υπερηλίκων του άρθρου 93 του ν. 4387/2016 (Α' 85)."]
[]
["Το κριτήριο της υποχρεωτικής ασφάλισης τουλάχιστον μία φορά σε οποιονδήποτε φορέα κύριας ασφάλισης και για χρόνο ασφάλισης μεγαλύτερο του ενός (1) μήνα μέχρι 31.10.2018 δεν ισχύει για τις εξής περιπτώσεις:"]
["α) για δικαιούχους 67 ετών και άνω,"]
["β) για νοικοκυριά στα οποία ο δικαιούχος ή ο συνυπόχρεος, εφόσον υπάρχει, είναι πρόσωπα με ποσοστό αναπηρίας 67% και άνω,"]
["γ) για μονογονεϊκά νοικοκυριά στα οποία ένα τουλάχιστον μέλος είναι πρόσωπο με ποσοστό αναπηρίας 67% και άνω (κωδικοί εντύπου Ε1: 001, 002, 005, 006, 905, 906, 913 και 914)."]
[]
["Ο δικαιούχος του μερίσματος πρέπει να έχει υποβάλει δήλωση φορολογίας εισοδήματος φορολογικού έτους 2017, καθώς και όλα τα ενήλικα μέλη του νοικοκυριού εφόσον έχουν υποχρέωση. "]
[]
["Άρθρο 3"]
["Διαδικασία υποβολής αιτήσεων"]
[]
["Η διαδικασία υποβολής αιτήσεων αποτελείται από τα κάτωθι στάδια:"]
[]
["1. Η αίτηση, η οποία επέχει θέση υπεύθυνης δήλωσης του ν. 1599/1986 (Α' 75) ως προς τα δηλούμενα στοιχεία και συναίνεσης για τη λήψη φορολογικών δεδομένων που τηρούνται στην Α.Α.Δ.Ε., υποβάλλεται από τον/ την υπόχρεο ή τον/τη σύζυγο του υπόχρεου υποβολής δήλωσης φορολογίας εισοδήματος της ωφελούμενης μονάδας μέσω του διαδικτυακού τόπου του προγράμματος (www.koinonikomerisma.gr), χρησιμοποιώντας τους προσωπικούς κωδικούς πρόσβασης του πληροφοριακού συστήματος TAXISnet της Ανεξάρτητης Αρχής Δημοσίων Εσόδων (Α.Α.Δ.Ε.)."]
["Κατ' εξαίρεση, είναι δυνατή η οίκοθεν καταβολή του κοινωνικού μερίσματος σε δικαιούχους, εφόσον πληρούνται σωρευτικά τα ακόλουθα κριτήρια:"]
[]
["α) Ο υπόχρεος ή συνυπόχρεος είναι είτε συνταξιούχος είτε λαμβάνει το επίδομα κοινωνικής αλληλεγγύης ανασφάλιστων υπερηλίκων του άρθρου 93 του ν. 4387/2016."]
[]
["β) Ο υπόχρεος ή συνυπόχρεος είναι ηλικίας εβδομήντα (70) ετών και άνω."]
[]
["γ) Δεν υπάρχουν στην ωφελούμενη μονάδα εξαρτώμενα μέλη ούτε φιλοξενούμενοι."]
[]
["δ) Έχει δηλωθεί κύρια κατοικία (πίνακας αριθμ. 5 στο έντυπο Ε1) και όχι φιλοξενία σε άλλο φυσικό πρόσωπο."]
[]
["ε) Είναι ενημερωμένο το πεδίο του Α.Φ.Μ. στη βάση του Α.Μ.Κ.Α. για τον υπόχρεο και συνυπόχρεο εφόσον υπάρχει."]
[]
["2. Σε περίπτωση ωφελούμενης μονάδας που απαρτίζεται και από φιλοξενούμενα μέλη, η αίτηση υποβάλλεται αποκλειστικά από τον/την υπόχρεο ή τον/τη σύζυγο του υπόχρεου υποβολής δήλωσης φορολογίας εισοδήματος της φιλοξενούσας μονάδας, για το σύνολο των μελών της ωφελούμενης μονάδας. Κατά την επεξεργασία της αίτησης, θα ζητηθεί η συναίνεση των φιλοξενούμενων ατόμων μέσω των κωδικών τους TAXISnet για τη λήψη από την ΗΔΙΚΑ Α.Ε. των στοιχείων τους που τηρούνται στην Α.Α.Δ.Ε. Η συναίνεση όλων των φιλοξενούμενων ενηλίκων εντός της προθεσμίας υποβολής της αίτησης είναι απαραίτητη προϋπόθεση για την ολοκλήρωσή της. Επίσης, στα νοικοκυριά, στα οποία όλα τα μέλη φιλοξενούνται από ανήλικο, η αίτηση υποβάλλεται υποχρεωτικά από τον πρώτο ενήλικο φιλοξενούμενο."]
[]
["3. Όλα τα δεδομένα των μελών της ωφελούμενης μονάδας που αφορούν σε στοιχεία ταυτοποίησης, στη σύνθεση του νοικοκυριού, σε φορολογικά, οικονομικά και περιουσιακά στοιχεία, στοιχεία εγγραφής στον ΕΦΚΑ και στοιχεία ανεργίας, τα οποία είναι κατά περίπτωση αναγκαία και πρόσφορα για τον έλεγχο πλήρωσης των κριτηρίων του άρθρου 2 της παρούσας, προκύπτουν από διασυνδέσεις ή διασταυρώσεις ιδίως με τις βάσεις δεδομένων της ΑΑΔΕ, του ΕΦΚΑ, της ΕΑΠ και του ΟΑΕΔ, προσυμπληρώνονται αυτόματα και συγκεντρώνονται από την Η.ΔΙ.Κ.Α. Α.Ε.."]
["Όλοι οι εμπλεκόμενοι φορείς λαμβάνουν τα απαιτούμενα τεχνικά και οργανωτικά μέτρα για τη διασφάλιση της προστασίας των δεδομένων των υποκειμένων, σε όλες τις επεξεργασίες που είναι απαραίτητες για τη διαδικασία ελέγχου των κριτηρίων χορήγησης του κοινωνικού μερίσματος. Τα δεδομένα που συγκεντρώνει η Η.ΔΙ.Κ.Α. Α.Ε. θα χρησιμοποιηθούν αποκλειστικά και μόνο για τις ανάγκες επεξεργασίας των αιτήσεων χορήγησης του κοινωνικού μερίσματος. Απαραίτητη είναι η συμπλήρωση αριθμού λογαριασμού ΙΒΑΝ. Ο αιτών φέρει την ευθύνη για τη συμπλήρωση αριθμού λογαριασμού, ο οποίος είναι έγκυρος και ενεργός και στον οποίο είναι υποχρεωτικά είτε αποκλειστικός δικαιούχος είτε συνδικαιούχος."]
["Εάν ο ενδιαφερόμενος δεν είναι αποκλειστικά δικαιούχος ή συνδικαιούχος στον δηλωμένο αριθμό λογαριασμού, δεν κρίνεται δικαιούχος του κοινωνικού μερίσματος και δεν πραγματοποιείται η σχετική πληρωμή, ακόμα και αν πληρούνται τα κριτήρια χορήγησής του. Σε περίπτωση που κάποιος ΙΒΑΝ δεν είναι ενεργός, με αποτέλεσμα να μην είναι δυνατή η πίστωση του λογαριασμού, στον οποίο ο ενδιαφερόμενος είναι αποκλειστικά δικαιούχος ή συνδικαιούχος, θα πρέπει αυτός να μεταβεί στο οικείο πιστωτικό ίδρυμα και να διευθετήσει το εν λόγω ζήτημα μέχρι τη λήξη της προθεσμίας υποβολής αιτήσεων. Εάν ο ίδιος ΙΒΑΝ εμφανίζεται δηλωμένος τρεις ή περισσότερες φορές για διαφορετικούς αιτούντες, τότε η αίτηση ακυρώνεται αυτόματα."]
[]
["4. Κατά την επεξεργασία της αίτησης, ο αιτών δύναται να αλλάξει τη σύνθεση της ωφελούμενης μονάδας, όπως αυτή προκύπτει από τη δήλωση φορολογίας εισοδήματος του φορολογικού έτους 2017, με την προσθήκη τέκνου που έχει γεννηθεί μετά την 31.12.2017, εισάγοντας τον Α.Μ.Κ.Α. του."]
[]
["5. Σε περίπτωση που προκύψει ασυμφωνία στοιχείων μεταξύ ΑΦΜ και ΑΜΚΑ, ο αιτών ή τα μέλη του νοικοκυριού (ανάλογα με το μέλος στου οποίου τα στοιχεία υπάρχει ασυμφωνία) θα πρέπει εντός της προθεσμίας υποβολής αιτήσεων να αιτηθεί την αλλαγή στοιχείων του ΑΜΚΑ του στα ΚΕΠ. Στη συνέχεια, θα πρέπει να προχωρήσει στην ολοκλήρωση της διαδικασίας υποβολής της αίτησης."]
[]
["6. Σε περίπτωση που προκύψει ασυμφωνία των στοιχείων ΑΜΚΑ, ΑΦΜ ή του ελάχιστου χρόνου ασφάλισης, όπως αυτά προκύπτουν από το Μητρώο του ΕΦΚΑ, ο αιτών θα πρέπει εντός της προθεσμίας υποβολής αίτησης να επικαιροποιήσει τα στοιχεία του στον ΕΦΚΑ."]
[]
["7. Μετά την οριστική υποβολή της αίτησης, ο αιτών ενημερώνεται αυτόματα για την έγκριση ή την απόρριψή της, καθώς και για το ύψος της παροχής."]
[]
["8. Η αίτηση δύναται να ακυρωθεί από τον αιτούντα εντός της προθεσμίας υποβολής αιτήσεων ανεξάρτητα του αν έχει υποβληθεί οριστικά ή όχι και να υποβληθεί νέα."]
[]
["9. Άτομα που έχουν δηλώσει στη δήλωση φορολογίας εισοδήματος του φορολογικού έτους 2017 ότι φιλοξενούνται από φυσικά πρόσωπα, δεν είναι χωριστά δικαιούχοι κοινωνικού μερίσματος."]
[]
["Άρθρο 4"]
["Χρόνος υποβολής αιτήσεων και πληρωμών"]
[]
["1. Για τη μηχανογραφική διαδικασία χορήγησης του κοινωνικού μερίσματος ορίζεται ως αρμόδιος φορέας η Ανώνυμη Εταιρεία με την επωνυμία Ηλεκτρονική Διακυβέρνηση Κοινωνικής Ασφάλισης (εφεξής Η.ΔΙ.Κ.Α. Α.Ε.)."]
[]
["2. Η καταβολή του κοινωνικού μερίσματος γίνεται εφάπαξ με πίστωση σε τραπεζικό λογαριασμό του δικαιούχου, ο οποίος υποδεικνύεται στην κατά τα ανωτέρω υποβαλλόμενη αίτησή του. Η Η.ΔΙ.Κ.Α. Α.Ε. συντάσσει αναλυτική κατάσταση δικαιούχων, η οποία περιλαμβάνει τα πλήρη στοιχεία των δικαιούχων, τον αριθμό τραπεζικού λογαριασμού σε μορφή ΙΒΑΝ, το πιστωτικό ίδρυμα στο οποίο τηρείται ο λογαριασμός και το ποσό κοινωνικού μερίσματος που αντιστοιχεί σε κάθε δικαιούχο. Η ηλεκτρονική μορφή της κατάστασης αυτής είναι επεξεργάσιμη από την εταιρία «Διατραπεζικά συστήματα Α.Ε.» (ΔΙΑΣ Α.Ε.) προς την οποία και διαβιβάζεται. Επίσης, διαβιβάζεται συγκεντρωτική κατάσταση δικαιούχων σε έντυπη και ηλεκτρονική μορφή που περιλαμβάνει το συνολικό ποσό κοινωνικού μερίσματος, ολογράφως και αριθμητικώς, ανά τράπεζα ή πιστωτικό ίδρυμα. Οι ανωτέρω καταστάσεις εγκρίνονται από τον αρμόδιο διατάκτη του Υπουργείου Οικονομικών."]
[]
["3. Η ανωτέρω έντυπη συγκεντρωτική κατάσταση αποστέλλεται στη Διεύθυνση Λογιστικής Γενικής Κυβέρνησης του Γενικού Λογιστηρίου του Κράτους (Γ.Λ.Κ.), η οποία εκδίδει, βάσει αυτής, ειδική εντολή προς την Τράπεζα της Ελλάδος για χρέωση του λογαριασμού του Δημοσίου 200 «Ελληνικό Δημόσιο Συγκέντρωση Εισπράξεων Πληρωμών» με πίστωση των τραπεζικών λογαριασμών των οικείων τραπεζών ή πιστωτικών ιδρυμάτων, μέσω των οποίων διενεργούνται οι πληρωμές των δικαιούχων. Η ανωτέρω εντολή κοινοποιείται στη Διεύθυνση Προϋπολογισμού και Δημοσιονομικών Αναφορών της Γενικής Διεύθυνσης  Οικονομικών Υπηρεσιών του Υπουργείου Οικονομικών και στη ΔΙΑΣ Α.Ε."]
[]
["4. Για την πληρωμή του κοινωνικού μερίσματος, η ειδική εντολή πληρωμής της προηγούμενης παραγράφου επέχει θέση απόφασης ανάληψης υποχρέωσης."]
[]
["5. α. Η εμφάνιση των σχετικών πληρωμών στη δημόσια ληψοδοσία πραγματοποιείται με την έκδοση συμψηφιστικών χρηματικών ενταλμάτων από τη Διεύθυνση Οικονομικής Διαχείρισης της Γενικής Διεύθυνσης Οικονομικών Υπηρεσιών του Υπουργείου Οικονομικών."]
[]
["β. Δικαιολογητικά για την έκδοση των σχετικών χρηματικών ενταλμάτων ορίζονται τα ακόλουθα:"]
[]
["i) Απόφαση του Υπουργού Οικονομικών για την έκδοση του συμψηφιστικού χρηματικού εντάλματος, που εκδίδεται με μέριμνα της Λογιστικής Γενικής Κυβέρνησης του Γ.Λ.Κ."]
[]
["ii) Συγκεντρωτική κατάσταση της παραγράφου 3."]
[]
["iii) Αντίγραφα της ειδικής εντολής προς την Τράπεζα της Ελλάδος και της αναγγελίας της Τράπεζας για τη χρέωση του λογαριασμού 200."]
[]
["6. Η Διεύθυνση Λογιστικής Γενικής Κυβέρνησης, οι συμβαλλόμενες τράπεζες και τα λοιπά πιστωτικά ιδρύματα δεν θεωρούνται δημόσιοι υπόλογοι και ευθύνονται μόνο για τυχόν λάθη από δική τους υπαιτιότητα."]
[]
["Άρθρο 5"]
["Αχρεωστήτως καταβληθέντα Αναδρομικότητα και συμψηφισμός πληρωμών"]
[]
["1. Με την επιφύλαξη τυχόν προστίμων που προβλέπονται από άλλες διατάξεις, στα φυσικά πρόσωπα που δηλώνουν ψευδή στοιχεία στην αίτησή τους, επιβάλλονται οι κυρώσεις που προβλέπονται από την κείμενη νομοθεσία σε περίπτωση υποβολής ψευδούς δηλώσεως."]
[]
["2. Τυχόν αχρεωστήτως καταβληθέντα ποσά καταλογίζονται σε βάρος του ανοικείως λαβόντος, με απόφαση του Υπουργού Οικονομικών ή του νομίμως εξουσιοδοτημένου από αυτόν οργάνου και εισπράττονται κατά τις διατάξεις του ΚΕΔΕ."]
[]
["3. Είναι δυνατή η για οποιονδήποτε λόγο οικειοθελής επιστροφή από τον λαβόντα του πιστωθέντος στον τραπεζικό του λογαριασμό ποσού κοινωνικού μερίσματος, με την κατάθεσή του στον λογαριασμό του Ελληνικού Δημοσίου που τηρείται στην Τράπεζα της Ελλάδος [No 200211 (GR71 0100 0230 0000 0000 0200 211)]. Ως αιτιολογία θα πρέπει να αναγράφεται «επιστροφή κοινωνικού μερίσματος»."]
[]
["4. Με τη διαδικασία της προηγούμενης παραγράφου είναι επίσης δυνατή η επιστροφή ποσών που πιστώθηκαν κατά τη διαδικασία διανομής κοινωνικού μερίσματος έτους 2017."]
[]
[null,null,"Κοινωνικό Μέρισμα 2018"]
["Σύνθεση Νοικοκυριού","Κλίμακα ισοδυναμίας",null,"Ύψος παροχής (ευρώ)"]
[]
[null,null,"Εισοδηματικά όρια"]
["Ένας ενήλικας",1,"[0-5000]",400]
[null,null,"(5000-7000]",300]
[null,null,"(7000-9000]",200]
["Δύο ενήλικες ή μονογονεϊκή με ένα ανήλικο τέκνο","1.5","[0-7500]",600]
[null,null,"(7500-10500]",450]
[null,null,"(10500-13500]",300]
["Δύο ενήλικα μέλη και ένα ανήλικο ή μονογονεϊκή με δύο ανήλικα τέκνα","1.75","[0-8750]",700]
[null,null,"(8750-12250]",525]
[null,null,"(12250-15750]",350]
["Τρία ενήλικα μέλη ή δύο ενήλικα και δύο ανήλικα μέλη ή μονογονεϊκή με τρία ανήλικα",2,"[0-10000]",800]
[null,null,"(10000-14000]",600]
[null,null,"(14000-18000]",400]
["Τρία ενήλικα μέλη και ένα ανήλικο ή δύο ενήλικα και τρία ανήλικα μέλη ή μονογονεϊκή με τέσσερα ανήλικα","2.25","[0-11250]",900]
[null,null,"(11250-15750]",675]
[null,null,"(15750-20250]",450]
["Τέσσερα ενήλικα μέλη ή δύο ενήλικα και τέσσερα ανήλικα μέλη ή μονογονεϊκή με πέντε ανήλικα","2.5","[0-12500]",1000]
[null,null,"(12500-17500]",750]
[null,null,"(17500-22500]",500]
["Τέσσερα ενήλικα μέλη και ένα ανήλικο ή δύο ενήλικα και πέντε ανήλικα μέλη ή μονογονεϊκή με έξι ανήλικα","2.75","[0-13750]",1100]
[null,null,"(13750-19250]",825]
[null,null,"(19250-24750]",550]
["Πέντε ενήλικα μέλη (και άνω) ή δύο ενήλικα και έξι ανήλικα μέλη (και άνω) ή μονογονεϊκή με επτά ανήλικα (και άνω)",3,"[0-15000]",1200]
[null,null,"(15000-21000]",900]
[null,null,"(21000-27000]",600]

{"sheet":"Βήματα διαδικασίας","index":2,"n_rows":102,"n_cols":1,"rows_kept":102,"cut":false,"hidden":false,"merged":[]}
["Η διαδικασία σε 6 βήματα"]
[]
["Για τους άνω των 70 ετών που λαμβάνουν σύνταξη ή το επίδομα ανασφάλιστων υπερηλίκων του ΟΓΑ, εφόσον πληρούνται τα κριτήρια για την καταβολή του κοινωνικού μερίσματος, η αίτηση θα δημιουργηθεί αυτόματα και το κοινωνικό μέρισμα θα καταβληθεί στο λογαριασμό στον οποίο καταβάλλεται η σύνταξη ή το επίδομα ανασφάλιστων υπερηλίκων. Το παραπάνω αφορά νοικοκυριά που αποτελούνται από ένα μόνο άτομο ή από ένα ζευγάρι. Δεν ισχύει όταν στο νοικοκυριό υπάρχουν και άλλα μέλη."]
[]
["Για όποιον δεν επιθυμεί την αυτόματη καταβολή του μερίσματος, υπάρχει δυνατότητα ακύρωσης της αίτησης."]
[]
["Προσοχή: Σε περίπτωση που πληρούσατε τις προϋποθέσεις της οίκοθεν καταβολής και για το μέρισμα του 2017 και δεν πραγματοποιήθηκε η πληρωμή, σημαίνει ότι υπήρξε κάποιο πρόβλημα με τη διασταύρωση των στοιχείων σας. Σας προτρέπουμε φέτος, να ακολουθήσετε κανονικά τη διαδικασία υποβολής αίτησης και να μην περιμένετε την αυτόματη υποβολή, προκειμένου να αποφευχθεί αντίστοιχο πρόβλημα με την περσινή καταβολή."]
[]
["Βήμα 1"]
[]
["Με την είσοδό σας στο σύστημα θα σας ζητηθεί:"]
[]
["- Να επιβεβαιώσετε τον ΑΜΚΑ σας και να εισάγετε μία διεύθυνση ηλεκτρονικού ταχυδρομείου (e-mail) και τον αριθμό ενός κινητού τηλεφώνου που θα χρησιμοποιηθούν για αποστολή τυχόν ειδοποιήσεων. Σας συνιστούμε να συμπληρώσετε το πεδίο του e-mail καθώς σε περίπτωση προβλημάτων με την πληρωμή θα σας αποστέλλονται σχετικές ενημερώσεις."]
[]
["- Nα συναινέσετε στην επεξεργασία των στοιχείων που απαιτούνται, δηλαδή των στοιχείων που αφορούν εσάς, την/τον σύζυγό σας, τα προστατευόμενα τέκνα σας ή/και τυχόν φιλοξενούμενα μέλη."]
[]
["! Αν το σύστημα δεν πιστοποιεί τον συνδυασμό ΑΦΜ και ΑΜΚΑ που έχετε εισάγει, θα εμφανιστεί αντίστοιχο μήνυμα. Στην περίπτωση αυτή:"]
[]
["- θα πρέπει να μεταβείτε σε ένα ΚΕΠ και να ζητήσετε να ενημερώσετε την εγγραφή του ΑΜΚΑ σας ως προς το πεδίο του ΑΦΜ. Για το σκοπό αυτό θα χρειαστείτε ένα έγγραφο που να αποδεικνύει την ταυτότητά σας (ΑΔΤ, Διαβατήριο, κ.τ.λ.) και ένα έγγραφο που να αναγράφει το ΑΦΜ μαζί με τα προσωπικά στοιχεία σας (π.χ. εκκαθαριστικό εφορίας)."]
[]
["Μόλις πραγματοποιηθεί η διόρθωση μπορείτε να ξεκινήσετε εκ νέου τη διαδικασία (Βήμα 1) προκειμένου να διαπιστώσετε αν είστε δικαιούχος του κοινωνικού μερίσματος."]
[]
["Βήμα 2"]
[]
["Αφού συναινέσετε στην επεξεργασία προσωπικών και λοιπών στοιχείων, θα εμφανιστεί μια φόρμα που αναφέρει:"]
[]
["- τα προσωπικά σας στοιχεία (ονοματεπώνυμο, ημερομηνία γέννησης, φύλο κτλ),"]
["- οικονομικά στοιχεία (φορολογητέο και αφορολόγητο ετήσιο εισόδημα),"]
["- περιουσιακά στοιχεία (αξία ακίνητης περιουσίας, τόκους καταθέσεων),"]
["- μια ένδειξη για το αν πληρούται το κριτήριο της μόνιμης κατοικίας στην Ελλάδα την τελευταία πενταετία,"]
["- μια ένδειξη για το αν ικανοποιείται το κριτήριο της ύπαρξης έστω και ενός μήνα πλήρους ασφάλισης φορέα κύριας ασφάλισης (για εξαιρέσεις βλ. άρθρο 2 της σχετικής υπουργικής απόφασης) και τέλος,"]
["- έναν κατάλογο με τα μέλη του νοικοκυριού σας."]
[]
["! Αν κάποια από τα προσωπικά σας στοιχεία εμφανίζονται λανθασμένα στο σύστημα θα πρέπει να μεταβείτε σε ένα ΚΕΠ και να διορθώσετε το στοιχείο που εμφανίζεται εσφαλμένα χρησιμοποιώντας κάθε πρόσφορο έγγραφο που μπορεί να αποδείξει την αλλαγή που θέλετε να κάνετε."]
[]
["! Αν το σύστημα δεν έχει σωστή ένδειξη για το κριτήριο ύπαρξης έστω και ενός μήνα ασφάλισης σε φορέα κοινωνικής ασφάλισης, θα πρέπει να μεταβείτε σε υποκατάστημα του ΕΦΚΑ και να ζητήσετε να διορθωθούν τα στοιχεία σας προσκομίζοντας κάθε αναγκαίο έγγραφο. Οι διορθώσεις σχετίζονται μόνο με αποκατάσταση σφαλμάτων αναφορικά με την ταυτότητα του ασφαλισμένου και όχι σε εκ των υστέρων αναγνώριση χρόνου ασφάλισης."]
[]
["! Αλλαγές σχετικά με τα οικονομικά σας στοιχεία ή τη διασταύρωση της επί πενταετίας μόνιμης κατοικίας στην χώρα δεν είναι δυνατή, καθώς προκύπτει από παρελθούσες φορολογικές σας δηλώσεις και από τα στοιχεία του ΑΜΚΑ-ΕΜΑΕΣ."]
[]
["Βήμα 3"]
[]
["Απαραίτητη είναι η σωστή συμπλήρωση αριθμού λογαριασμού IBAN στον οποίο είστε δικαιούχος ή συνδικαιούχος."]
[]
["! Θα πρέπει να δηλώσετε έγκυρο και ενεργό IBAN, στον οποίο είστε υποχρεωτικά είτε αποκλειστικός δικαιούχος είτε συνδικαιούχος. Σε αντίθετη περίπτωση, δεν θα πραγματοποιηθεί η πληρωμή ακόμα και αν πληρούνται όλα τα παραπάνω κριτήρια. Για τον λόγο αυτό, προτείνουμε να χρησιμοποιήσετε τυχόν δηλωμένο ακατάσχετο λογαριασμό, τον λογαριασμό μισθοδοσίας ή καταβολής σύνταξης ή επιδομάτων (ανεργίας, ΚΕΑ κ.τ.λ.)."]
[]
["! Υπογραμμίζεται η σημασία της ορθής συμπλήρωσης του συγκεκριμένου πεδίου. Επισημαίνεται επίσης, ότι θα διερευνηθεί σε μεταγενέστερο έλεγχο η συσχέτιση των αριθμών λογαριασμών IBAN με τους ΑΦΜ των δικαιούχων, όπως και η τυχόν εμφάνιση του ίδιου IBAN σε περισσότερους του ενός δικαιούχους."]
[]
["! Σε περίπτωση που από λάθος δηλωθεί ενεργός λογαριασμός ΙΒΑΝ ο οποίος δεν ανήκει στο δικαιούχο ή συνδικαιούχο του μερίσματος (ανήκει δηλαδή σε άλλο φυσικό ή νομικό πρόσωπο), ενδέχεται η πληρωμή να προχωρήσει κανονικά καθώς δεν είναι πάντοτε δυνατός ο έλεγχος του συνδυασμού του ΑΦΜ με το ΙΒΑΝ. Σε αυτή την περίπτωση θα εισπραχθεί το κοινωνικό μέρισμα από κάποιον άλλον. Απαιτείται επομένως μεγάλη προσοχή στη συμπλήρωση του πεδίου του ΙΒΑΝ."]
[]
["Βήμα 4"]
[]
["Σε περίπτωση που το νοικοκυριό σας περιλαμβάνει και ενήλικα φιλοξενούμενα μέλη, απαιτείται η συγκατάθεσή τους, μέσω των κωδικών τους στο TAXISnet, για την προσπέλαση των στοιχείων τους από την Α.Α.Δ.Ε., προκειμένου να διαπιστώσετε αν πληρούνται τα κριτήρια χορήγησης."]
[]
["! Η θετική συγκατάθεση όλων των φιλοξενούμενων ενηλίκων εντός της προθεσμίας είναι απαραίτητη προϋπόθεση ολοκλήρωσης και υποβολής της αίτησης. Συνεπώς, θα πρέπει να επικοινωνήσετε άμεσα με τους φιλοξενούμενούς σας (στη φόρμα αναγράφονται τα στοιχεία των ατόμων των οποίων η συναίνεση απαιτείται) ώστε να μπουν στον διαδικτυακό τόπο με τους δικούς τους κωδικούς και να συναινέσουν."]
[]
["! Προσοχή: Η ύπαρξη φιλοξενούμενων μελών έχει επιβεβαιωθεί μέσω ηλεκτρονικής αντιπαραβολής βάσει των τελευταίων φορολογικών δηλώσεων. Συνεπώς, δεν υπάρχει η δυνατότητα να προστεθούν ή να αφαιρεθούν φιλοξενούμενα μέλη στην αίτηση για το κοινωνικό μέρισμα."]
[]
["! Προσοχή: Εάν φορολογούμενος έχει δηλώσει ότι φιλοξενείται αλλά αυτό δεν έχει επιβεβαιωθεί από τον φιλοξενούντα (κατά την υποβολή της τελευταίας φορολογικής δήλωσης), και ο φιλοξενούμενος δεν άλλαξε την κατάσταση «φιλοξενίας» στη δήλωσή του, τότε ο φορολογούμενος αυτός δεν θα έχει τη δυνατότητα υποβολής αίτησης για το κοινωνικό μέρισμα."]
[]
["Αν έχετε αποκτήσει τέκνο μετά την 1/1/2018 μπορείτε να το δηλώσετε εισάγοντας τον αριθμό Α.Μ.Κ.Α. Το σύστημα ενημερώνεται αυτόματα για θανάτους που έχουν δηλωθεί στο ληξιαρχείο. Καμία άλλη αλλαγή στη σύνθεση του νοικοκυριού δεν είναι δυνατή."]
[]
["Βήμα 5"]
[]
["Εφόσον όλα τα ενήλικα μέλη του νοικοκυριού σας έχουν συναινέσει, εμφανίζεται η ένδειξη που αναφέρει αν πληρούνται τα κριτήρια χορήγησης. Στην περίπτωση που είστε δικαιούχος, ενημερώνεστε άμεσα για το ποσό του κοινωνικού μερίσματος που αντιστοιχεί στο νοικοκυριό σας. Διαφορετικά, εμφανίζεται η πρώτη αιτία απόρριψης."]
[]
["! Εάν δεν εμφανιστεί αυτή η πληροφορία, κάποιο από τα μέλη του νοικοκυριού δεν έχει δώσει ακόμα την συναίνεσή του."]
[]
["Βήμα 6"]
[]
["Εφόσον πληρούνται τα κριτήρια, θα πρέπει να κάνετε την επιλογή [Αποδέχομαι το κοινωνικό μέρισμα] ώστε να καταστείτε δικαιούχος του κοινωνικού μερίσματος."]
[]
["! Προσοχή: Σε περίπτωση μη αποδοχής δεν θα καταστείτε δικαιούχος ακόμα και αν πληρούνται τα κριτήρια."]
[]
["Σημείωση:"]
[]
["Αν κατά τα 4 πρώτα βήματα έχει προκύψει η ανάγκη να διορθώσετε τα στοιχεία σας σε ΚΕΠ ή στον ΕΦΚΑ, για να ενημερωθεί η πλατφόρμα με τις αλλαγές που κάνατε, πρέπει να ζητήσετε να γίνει επαναξιολόγηση του νοικοκυριού σας κάνοντας την επιλογή στην οθόνη «Αξιολόγηση επιλεξιμότητας κοινωνικού μερίσματος». Η διαδικασία θα πρέπει σε κάθε περίπτωση να ολοκληρωθεί εντός της σχετικής προθεσμίας αποδοχής του κοινωνικού μερίσματος."]
[]
[]
["Υποστήριξη πολιτών – Υποβολή ερωτημάτων"]
[]
["Για την υποστήριξη της εφαρμογής του κοινωνικού μερίσματος οι πολίτες μπορούν να αναφέρουν τα προβλήματα που αντιμετωπίζουν στην ακόλουθη διεύθυνση ηλεκτρονικού ταχυδρομείου: info@koinonikomerisma.gr."]
[]
["Οι ερωτήσεις θα ομαδοποιούνται και οι απαντήσεις θα προστίθενται στην σελίδα των Συχνών Ερωτήσεων: https://www.koinonikomerisma.gr/Home/Info."]
[]
["Τα τεχνικά προβλήματα θα επιλύονται το συντομότερο δυνατό, οπότε και οι πολίτες που δεν κατάφεραν να ολοκληρώσουν την αίτησή τους θα πρέπει να δοκιμάσουν να την επανυποβάλλουν μετά από μερικές μέρες, και εντός πάντα της σχετικής προθεσμίας υποβολής αιτήσεων."]
[]
[]
["Τα βήματα συνοπτικά:"]
[]
["✓ Βήμα 1: Μπείτε στην πλατφόρμα"]
[]
["✓ Βήμα 2: Ελέγξτε τα στοιχεία σας"]
[]
["✓ Βήμα 3: Συμπληρώστε τον IBAN σας"]
[]
["✓ Βήμα 4: Ενημερώστε τους φιλοξενούμενούς σας να δώσουν την συγκατάθεση τους"]
[]
["✓ Βήμα 5: Δείτε αν πληροίτε τα κριτήρια επιλεξιμότητας"]
[]
["✓ Βήμα 6: Αποδεχθείτε το Κοινωνικό Μέρισμα του 2018."]
[]
["Πηγή: Taxheaven © Δείτε περισσότερα https://www.taxheaven.gr/news/news/view/id/43064"]

{"sheet":"Συχνές ερωτήσεις απαντήσεις","index":3,"n_rows":353,"n_cols":27,"rows_kept":353,"cut":false,"hidden":false,"merged":[]}
[null,null,null,null,null,null,null,null,null,null,null,null,null,null,null,null,null,null,null,null,null,null,null,null,null,null,"Πέμπτη 6 Δεκεμβρίου 2018"]
[]
[]
[null,null,null,null,null,null,null,null,null,null,null,null,null,null,null,null,null,null,null,null,null,null,null,null,null,null,"FAQs – Συχνές ερωτήσεις για το Κοινωνικό Μέρισμα 2018"]
[]
[]
[null,null,null,null,null,null,null,null,null,null,null,null,null,null,null,null,null,null,null,null,null,null,null,null,null,null,"A.    Διαδικασία αίτησης"]
[]
[]
[null,null,null,null,null,null,null,null,null,null,null,null,null,null,null,null,null,null,null,null,null,null,null,null,null,null,"A1. Πού μπορώ να υποβάλω αίτηση για το κοινωνικό μέρισμα;"]
[]
[null,null,null,null,null,null,null,null,null,null,null,null,null,null,null,null,null,null,null,null,null,null,null,null,null,null,"Για να υποβάλετε αίτηση και να διαπιστώσετε αν είστε δικαιούχος του κοινωνικού μερίσματος πρέπει να μπείτε στον διαδικτυακό τόπο www.koinonikomerisma.gr χρησιμοποιώντας τους προσωπικούς κωδικούς πρόσβασης του πληροφοριακού συστήματος TAXISnet της Ανεξάρτητης Αρχής Δημοσίων Εσόδων (σύμφωνα με την ΚΥΑ αρθ. 3 παρ.1). Εάν είστε δικαιούχος του μερίσματος και συνταξιούχος ή λαμβάνετε το επίδομα ανασφάλιστων υπερηλίκων του ΟΓΑ, δείτε την ερώτηση Α6."]
[]
[]
[]
[null,null,null,null,null,null,null,null,null,null,null,null,null,null,null,null,null,null,null,null,null,null,null,null,null,null,"A2. Ποια στοιχεία πρέπει να συμπληρώσω στην αίτηση;"]
[]
[null,null,null,null,null,null,null,null,null,null,null,null,null,null,null,null,null,null,null,null,null,null,null,null,null,null,"Με την είσοδό σας στο σύστημα θα σας ζητηθεί να επιβεβαιώσετε τον ΑΜΚΑ σας και να εισάγετε τη διεύθυνση ηλεκτρονικού ταχυδρομείου (e-mail) σας και τον αριθμό ενός κινητού τηλεφώνου που θα χρησιμοποιηθούν για αποστολή τυχόν ειδοποιήσεων. Θα σας ζητηθεί επίσης να συναινέσετε στην επεξεργασία των στοιχείων που απαιτούνται, δηλαδή των στοιχείων που αφορούν εσάς, την/τον σύζυγό σας και τα προστατευόμενα τέκνα σας. Επίσης, θα πρέπει να δηλώσετε ένα έγκυρο και ενεργό IBAN, στον οποίο πρέπει να είστε υποχρεωτικά είτε αποκλειστικός δικαιούχος είτε συνδικαιούχος. Σε αντίθετη περίπτωση, δεν  θα πραγματοποιηθεί πληρωμή ακόμη και αν πληροίτε τα κριτήρια. Για τον λόγο αυτό, προτείνουμε να χρησιμοποιήσετε τυχόν δηλωμένο ακατάσχετο λογαριασμό, τον λογαριασμό μισθοδοσίας ή είσπραξης σύνταξης ή επιδομάτων (ανεργίας, ΚΕΑ κτλ), εάν υπάρχει, ώστε να είστε σίγουροι ότι δεν θα υπάρξει πρόβλημα με την πίστωση των χρημάτων στον λογαριασμό σας. Τα οικονομικά/περιουσιακά στοιχεία θα εμφανίζονται προσυμπληρωμένα στην αίτηση και η αλλαγή τους δεν είναι δυνατή. "]
[]
[null,null,null,null,null,null,null,null,null,null,null,null,null,null,null,null,null,null,null,null,null,null,null,null,null,null,"Σας συνιστούμε να μην παραλείψετε να δηλώσετε διεύθυνση ηλεκτρονικού ταχυδρομείου, καθώς στέλνονται ειδοποιήσεις σε περίπτωση προβλημάτων και αποτυχίας πληρωμής του μερίσματος στο λογαριασμό σας."]
[]
[null,null,null,null,null,null,null,null,null,null,null,null,null,null,null,null,null,null,null,null,null,null,null,null,null,null,"A3. Ποια βήματα πρέπει να ακολουθήσω εάν προκύψει ανάγκη για ενημέρωση στοιχείων που εμφανίζονται στην αίτηση; "]
[]
[null,null,null,null,null,null,null,null,null,null,null,null,null,null,null,null,null,null,null,null,null,null,null,null,null,null,"Αν εμφανίζονται λανθασμένα στο σύστημα τα στοιχεία σας θα πρέπει να απευθυνθείτε στους παρακάτω φορείς: "]
[null,null,null,null,null,null,null,null,null,null,null,null,null,null,null,null,null,null,null,null,null,null,null,null,null,null,"Ø  στα ΚΕΠ εάν το πρόβλημα αφορά στον ΑΜΚΑ (για περισσότερες λεπτομέρειες, δείτε την ερώτηση Α5) "]
[null,null,null,null,null,null,null,null,null,null,null,null,null,null,null,null,null,null,null,null,null,null,null,null,null,null,"Ø  στον ΕΦΚΑ εάν το πρόβλημα αφορά στον χρόνο ασφάλισης "]
[null,null,null,null,null,null,null,null,null,null,null,null,null,null,null,null,null,null,null,null,null,null,null,null,null,null,"Ø  στον ΟΑΕΔ εάν το πρόβλημα αφορά στον χρόνο ανεργίας (για περισσότερες λεπτομέρειες, δείτε την ερώτηση Ε1)"]
[]
[null,null,null,null,null,null,null,null,null,null,null,null,null,null,null,null,null,null,null,null,null,null,null,null,null,null,"Στη συνέχεια, πρέπει να ξαναμπείτε στον διαδικτυακό τόπο www.koinonikomerisma.gr και να επαναλάβετε τη διαδικασία. Η διαδικασία θα πρέπει πάντως να ολοκληρωθεί εντός της σχετικής προθεσμίας υποβολής αιτήσεων."]
[]
[]
[]
[null,null,null,null,null,null,null,null,null,null,null,null,null,null,null,null,null,null,null,null,null,null,null,null,null,null,"A4. Ποια διαδικασία πρέπει να ακολουθήσω σε περίπτωση που εμφανίζονται λάθος κάποια από τα προσωπικά μου στοιχεία; "]
[]
[null,null,null,null,null,null,null,null,null,null,null,null,null,null,null,null,null,null,null,null,null,null,null,null,null,null,"Στην περίπτωση αυτή και εφόσον εμφανιστεί αντίστοιχο μήνυμα, πρέπει να πάτε σε ένα ΚΕΠ και να διορθώσετε το στοιχείο που είναι λάθος,  χρησιμοποιώντας οποιοδήποτε επίσημο  έγγραφο  μπορεί να αποδείξει την αλλαγή που θέλετε να κάνετε."]
[]
[]
[]
[null,null,null,null,null,null,null,null,null,null,null,null,null,null,null,null,null,null,null,null,null,null,null,null,null,null,"A5. Ποια διαδικασία πρέπει να ακολουθήσω σε περίπτωση που δεν πιστοποιείται ο συνδυασμός ΑΦΜ και ΑΜΚΑ; "]
[]
[null,null,null,null,null,null,null,null,null,null,null,null,null,null,null,null,null,null,null,null,null,null,null,null,null,null,"Στην περίπτωση αυτή και εφόσον εμφανιστεί αντίστοιχο μήνυμα, πρέπει να πάτε σε ένα ΚΕΠ και να ζητήσετε να ενημερώσετε την εγγραφή του ΑΜΚΑ σας ως προς το πεδίο του ΑΦΜ. Θα χρειαστείτε ένα έγγραφο που να αποδεικνύει ότι είστε εσείς (ΑΔΤ, Διαβατήριο, κτλ) και ένα έγγραφο που να αναγράφει το ΑΦΜ μαζί με τα προσωπικά στοιχεία σας (πχ εκκαθαριστικό εφορίας). Στη συνέχεια, πρέπει να ξαναμπείτε στον διαδικτυακό τόπο www.koinonikomerisma.gr και να επαναλάβετε τη διαδικασία. Η διαδικασία θα πρέπει πάντως να ολοκληρωθεί εντός της σχετικής προθεσμίας υποβολής αιτήσεων."]
[]
[]
[]
[null,null,null,null,null,null,null,null,null,null,null,null,null,null,null,null,null,null,null,null,null,null,null,null,null,null,"A6. Εάν είμαι άνω των 70 ετών και δεν έχω πρόσβαση σε υπολογιστή, είναι απαραίτητο να κάνω αίτηση; "]
[]
[null,null,null,null,null,null,null,null,null,null,null,null,null,null,null,null,null,null,null,null,null,null,null,null,null,null,"Εάν είστε άνω των 70 ετών και λαμβάνετε σύνταξη ή το επίδομα των ανασφάλιστων υπερηλίκων του ΟΓΑ, δεν είναι απαραίτητη η υποβολή αίτησης. Εφόσον πληροίτε τα κριτήρια για την καταβολή του κοινωνικού μερίσματος, το κοινωνικό μέρισμα θα σας καταβληθεί αυτόματα στο λογαριασμό στον οποίο λαμβάνετε τη σύνταξη ή το επίδομα ανασφάλιστων υπερηλίκων. "]
[]
[null,null,null,null,null,null,null,null,null,null,null,null,null,null,null,null,null,null,null,null,null,null,null,null,null,null,"ΠΡΟΣΟΧΗ: Η αυτόματη καταβολή σε τραπεζικό λογαριασμό, σύμφωνα με τα παραπάνω, αφορά μόνο σε όσα νοικοκυριά αποτελούνται από ένα μόνο άτομο ή από ένα ζευγάρι και δεν ισχύει όταν υπάρχουν και άλλα μέλη στο νοικοκυριό."]
[]
[]
[]
[null,null,null,null,null,null,null,null,null,null,null,null,null,null,null,null,null,null,null,null,null,null,null,null,null,null,"Αν πληρούσατε αυτά τα κριτήρια και πέρυσι και υπήρξε πρόβλημα με την πληρωμή σας για το μέρισμα του 2017, δείτε την ερώτηση Γ16 για τις ενέργειες που πρέπει να κάνετε."]
[]
[]
[]
[null,null,null,null,null,null,null,null,null,null,null,null,null,null,null,null,null,null,null,null,null,null,null,null,null,null,"Α7. Πώς μπορεί ο αιτών να διαπιστώσει εάν το νοικοκυριό του είναι επιλέξιμο για το κοινωνικό μέρισμα;"]
[]
[null,null,null,null,null,null,null,null,null,null,null,null,null,null,null,null,null,null,null,null,null,null,null,null,null,null,"Εφόσον έχουν δοθεί όλες οι τυχόν απαιτούμενες συναινέσεις των ενήλικων μελών του νοικοκυριού σας, εμφανίζεται η πληροφορία αν πληροίτε τα κριτήρια ή όχι. Εάν τα κριτήρια ικανοποιούνται, εμφανίζεται και το ποσό του κοινωνικού μερίσματος που αντιστοιχεί στο νοικοκυριό σας. Στην αντίθετη περίπτωση, εμφανίζονται αναλυτικά οι λόγοι μη εκπλήρωσης των κριτηρίων. "]
[]
[]
[]
[null,null,null,null,null,null,null,null,null,null,null,null,null,null,null,null,null,null,null,null,null,null,null,null,null,null,"A8. Για ποιο λόγο μπορεί να μην εμφανιστεί το αποτέλεσμα της αίτησης;"]
[]
[null,null,null,null,null,null,null,null,null,null,null,null,null,null,null,null,null,null,null,null,null,null,null,null,null,null,"Αν δεν βλέπετε την πληροφορία για το αν πληροίτε τα κριτήρια ή όχι, κάποιο από τα μέλη του νοικοκυριού δεν έχει δώσει ακόμα την συναίνεση του ή δεν έχετε οριστικοποιήσει την υποβολή της αίτησης. "]
[]
[]
[]
[null,null,null,null,null,null,null,null,null,null,null,null,null,null,null,null,null,null,null,null,null,null,null,null,null,null,"A9. Έχω υποβάλει τροποποιητική φορολογική δήλωση για το έτος 2017. Ποια στοιχεία θα εμφανιστούν στην αίτησή μου για το κοινωνικό μέρισμα;"]
[]
[null,null,null,null,null,null,null,null,null,null,null,null,null,null,null,null,null,null,null,null,null,null,null,null,null,null,"Στην αίτηση για το κοινωνικό μέρισμα, θα εμφανίζονται τα στοιχεία της τροποποιημένης δήλωσης φορολογίας εισοδήματος εφόσον αυτή έχει υποβληθεί έως 31/10/2018."]
[]
[]
[]
[null,null,null,null,null,null,null,null,null,null,null,null,null,null,null,null,null,null,null,null,null,null,null,null,null,null," "]
[]
[]
[]
[null,null,null,null,null,null,null,null,null,null,null,null,null,null,null,null,null,null,null,null,null,null,null,null,null,null,"A10. Είχα πέρυσι εγκεκριμένη αίτηση και τελικά δεν πληρώθηκα, τι πρέπει να κάνω φέτος; "]
[]
[null,null,null,null,null,null,null,null,null,null,null,null,null,null,null,null,null,null,null,null,null,null,null,null,null,null,"Σε όσες αιτήσεις έγινε έλεγχος, είτε είχε δοθεί λάθος IBAN, είτε ο λογαριασμός ήταν  ανενεργός κατά την ημέρα καταβολής του μερίσματος. Σας προτρέπουμε να ελέγξετε την κατάσταση του λογαριασμού σας, την ορθότητα του αριθμού λογαριασμού που έχει περαστεί και να συμπληρώσετε σωστά στοιχεία επικοινωνίας."]
[]
[]
[]
[null,null,null,null,null,null,null,null,null,null,null,null,null,null,null,null,null,null,null,null,null,null,null,null,null,null,"A11. Είμαι άστεγος. Μπορώ να κάνω αίτηση; "]
[]
[null,null,null,null,null,null,null,null,null,null,null,null,null,null,null,null,null,null,null,null,null,null,null,null,null,null,"Στο κοινωνικό μέρισμα έχουν ίδιο δικαίωμα αίτησης και όσοι έχουν επιλέξει στην τελευταία φορολογική τους δήλωση την ένδειξη «άστεγος-σκηνίτης»."]
[]
[null,null,null,null,null,null,null,null,null,null,null,null,null,null,null,null,null,null,null,null,null,null,null,null,null,null," "]
[]
[null,null,null,null,null,null,null,null,null,null,null,null,null,null,null,null,null,null,null,null,null,null,null,null,null,null,"Β. Διαδικασία πληρωμής – προβλήματα με IBAN"]
[]
[]
[]
[null,null,null,null,null,null,null,null,null,null,null,null,null,null,null,null,null,null,null,null,null,null,null,null,null,null,"B1. Τι γίνεται σε περίπτωση που δηλώσω λάθος ΙΒΑΝ στην αίτηση για το κοινωνικό μέρισμα;"]
[]
[null,null,null,null,null,null,null,null,null,null,null,null,null,null,null,null,null,null,null,null,null,null,null,null,null,null,"Στο μέρισμα του 2018 θα γίνει διασταύρωση του πεδίου του ΑΦΜ στο IBAN του λογαριασμού σας και θα βλέπετε προειδοποιητικό μήνυμα αν τα στοιχεία δεν διασταυρώνονται. Σε κάθε περίπτωση, αν ολοκληρώσετε την αίτηση υποβάλλοντας λάθος IBAN, μπορείτε να ακυρώσετε την αίτησή σας και να υποβάλλετε νέα, συμπληρώνοντας αυτή τη φορά σωστά το ΙΒΑΝ, πάντα εντός της προθεσμίας των αιτήσεων. "]
[]
[]
[]
[null,null,null,null,null,null,null,null,null,null,null,null,null,null,null,null,null,null,null,null,null,null,null,null,null,null,"Γ. Σύνθεση νοικοκυριού"]
[]
[]
[]
[null,null,null,null,null,null,null,null,null,null,null,null,null,null,null,null,null,null,null,null,null,null,null,null,null,null,"Γ1. Μπορεί να μεταβληθεί η σύνθεση του νοικοκυριού; "]
[]
[null,null,null,null,null,null,null,null,null,null,null,null,null,null,null,null,null,null,null,null,null,null,null,null,null,null,"Η μόνη δυνατή μεταβολή της σύνθεσης είναι η περίπτωση γέννησης τέκνου μετά την 31/12/2017. Το τέκνο μπορεί να προστεθεί εισάγοντας τον αριθμό Α.Μ.Κ.Α. Καμία άλλη αλλαγή στη σύνθεση του νοικοκυριού δεν είναι δυνατή. Σε περίπτωση θανάτου μέλους του νοικοκυριού, η ενημέρωση γίνεται αυτόματα εφόσον έχει δηλωθεί ο θάνατος στο ληξιαρχείο (καθώς αυτόματα ενημερώνεται το μητρώο του ΑΜΚΑ)."]
[]
[]
[]
[null,null,null,null,null,null,null,null,null,null,null,null,null,null,null,null,null,null,null,null,null,null,null,null,null,null,"Γ2. Οι αλλοδαποί που διαμένουν στην Ελλάδα έχουν δικαίωμα υποβολής αίτησης για το κοινωνικό μέρισμα;"]
[]
[null,null,null,null,null,null,null,null,null,null,null,null,null,null,null,null,null,null,null,null,null,null,null,null,null,null,"Ναι, αρκεί να πληρούν το κριτήριο νόμιμης και μόνιμης διαμονής για μία πενταετία στην Ελλάδα."]
[]
[]
[]
[null,null,null,null,null,null,null,null,null,null,null,null,null,null,null,null,null,null,null,null,null,null,null,null,null,null,"Γ3. Τι γίνεται στην περίπτωση που υπάρχουν φιλοξενούμενα μέλη στο νοικοκυριό;"]
[]
[null,null,null,null,null,null,null,null,null,null,null,null,null,null,null,null,null,null,null,null,null,null,null,null,null,null,"Σε περίπτωση που το νοικοκυριό σας έχει και ενήλικα φιλοξενούμενα μέλη, για να δείτε αν πληροίτε τα κριτήρια απαιτείται η συγκατάθεση των φιλοξενούμενων ατόμων, μέσω των κωδικών τους στο Taxis-net, για την επεξεργασία των δεδομένων τους."]
[]
[null,null,null,null,null,null,null,null,null,null,null,null,null,null,null,null,null,null,null,null,null,null,null,null,null,null,"Η θετική συγκατάθεση όλων των φιλοξενούμενων ενηλίκων εντός της προθεσμίας είναι απαραίτητη προϋπόθεση ολοκλήρωσης της αίτησης. Συνεπώς, πρέπει να επικοινωνήσετε άμεσα με τους φιλοξενούμενούς σας (στη φόρμα αναγράφονται τα στοιχεία των ατόμων των οποίων η συναίνεση απαιτείται) ώστε να μπουν στον δικτυακό τόπο με τους δικούς τους κωδικούς και να συναινέσουν."]
[]
[]
[]
[]
[]
[null,null,null,null,null,null,null,null,null,null,null,null,null,null,null,null,null,null,null,null,null,null,null,null,null,null,"Γ4. Μπορώ να αλλάξω τη σύνθεση του νοικοκυριού σε περίπτωση που είχα κάποιον φιλοξενούμενο, αλλά δεν τον φιλοξενώ πλέον; "]
[]
[null,null,null,null,null,null,null,null,null,null,null,null,null,null,null,null,null,null,null,null,null,null,null,null,null,null,"Η αίτηση περιλαμβάνει τα στοιχεία που απεικονίζονται στη δήλωση φορολογίας εισοδήματος του φορολογικού έτους 2017. Εάν στην τελευταία δήλωση εμφανίζεται φιλοξενούμενο άτομο, ακόμα και αν αυτό έχει αποχωρήσει πλέον από το νοικοκυριό, δεν μπορεί να αφαιρεθεί από τη σύνθεση του νοικοκυριού. "]
[]
[]
[]
[null,null,null,null,null,null,null,null,null,null,null,null,null,null,null,null,null,null,null,null,null,null,null,null,null,null,"Γ5. Τι μπορώ να κάνω στην περίπτωση που φαίνεται ως φιλοξενούμενός μου άτομο το οποίο μου είναι άγνωστο; "]
[]
[null,null,null,null,null,null,null,null,null,null,null,null,null,null,null,null,null,null,null,null,null,null,null,null,null,null,"Η ύπαρξη φιλοξενούμενων μελών έχει επιβεβαιωθεί μέσω ηλεκτρονικής αντιπαραβολής από τις τελευταίες δηλώσεις φορολογίας εισοδήματος κατά τις οποίες η φιλοξενία επιβεβαιώθηκε τόσο από το φιλοξενούντα όσο και από το φιλοξενούμενο. Οπότε πλέον δεν υφίσταται πρόβλημα ύπαρξης φιλοξενούμενων για τους οποίους ο φιλοξενών δεν έχει γνώση."]
[]
[]
[]
[null,null,null,null,null,null,null,null,null,null,null,null,null,null,null,null,null,null,null,null,null,null,null,null,null,null,"Γ6. Ο αδερφός μου είναι φιλοξενούμενος από τους γονείς μας. Μπορεί να αιτηθεί για το κοινωνικό μέρισμα;"]
[]
[null,null,null,null,null,null,null,null,null,null,null,null,null,null,null,null,null,null,null,null,null,null,null,null,null,null,"Οι φιλοξενούμενοι δεν μπορούν να αιτηθούν. Αυτό που μπορεί να γίνει είναι να αιτηθεί για το κοινωνικό μέρισμα είτε ο πατέρας σας είτε η μητέρα σας και να τον συμπεριλάβουν στην αίτηση ως φιλοξενούμενο μέλος. Επίσης, στην αίτηση θα πρέπει να συμπεριληφθούν και όλα τα υπόλοιπα μέλη του νοικοκυριού (αν υπάρχουν) που κατοικούν κάτω από την ίδια στέγη. "]
[]
[]
[]
[null,null,null,null,null,null,null,null,null,null,null,null,null,null,null,null,null,null,null,null,null,null,null,null,null,null,"Γ7. Τι γίνεται στην περίπτωση κατά την οποία κάποιος φαίνεται στην τελευταία φορολογική δήλωση φιλοξενούμενος, ενώ το τρέχον διάστημα μένει σε δικό του σπίτι ή σε δωρεάν παραχωρημένη κατοικία; Μπορεί να κάνει αίτηση μόνος του; "]
[]
[null,null,null,null,null,null,null,null,null,null,null,null,null,null,null,null,null,null,null,null,null,null,null,null,null,null,"Οι φιλοξενούμενοι δεν μπορούν να αιτηθούν, εφόσον έχουν δηλώσει ότι φιλοξενούνται από άλλο φορολογούμενο στη δήλωση φορολογίας εισοδήματος του φορολογικού έτους 2017 ακόμα και εάν τώρα δεν διαμένουν στο νοικοκυριό που είχαν δηλώσει. "]
[]
[]
[]
[null,null,null,null,null,null,null,null,null,null,null,null,null,null,null,null,null,null,null,null,null,null,null,null,null,null,"Γ8. Όσοι σπουδάζουν μπορούν να υποβάλουν αίτηση μόνοι τους ή θεωρούνται προστατευόμενα μέλη; "]
[]
[null,null,null,null,null,null,null,null,null,null,null,null,null,null,null,null,null,null,null,null,null,null,null,null,null,null,"Όσοι σπουδάζουν (μέχρι την ηλικία των 25 ετών) θεωρούνται προστατευόμενα μέλη και συμπεριλαμβάνονται στη φορολογική δήλωση των γονέων τους ανεξαρτήτως τόπου διαμονής, ακόμη και αν υποβάλλουν δική τους ξεχωριστή δήλωση. Συνεπώς, δεν μπορούν να υποβάλουν ξεχωριστή αίτηση. "]
[]
[]
[]
[null,null,null,null,null,null,null,null,null,null,null,null,null,null,null,null,null,null,null,null,null,null,null,null,null,null,"Γ9. Παντρεύτηκα το 2018, αλλά έμενα μόνος το 2017, μπορώ να κάνω αίτηση μαζί με τον/την σύζυγο ;"]
[]
[null,null,null,null,null,null,null,null,null,null,null,null,null,null,null,null,null,null,null,null,null,null,null,null,null,null,"Δεν μπορεί να γίνει κοινή αίτηση για το κοινωνικό μέρισμα, αφού η αίτηση απεικονίζει την εικόνα του φορολογούμενου σύμφωνα με την εκκαθαρισμένη δήλωση φορολογίας εισοδήματος ή τυχόν τροποποιητικές της μέχρι 31/10/2018."]
[]
[]
[]
[null,null,null,null,null,null,null,null,null,null,null,null,null,null,null,null,null,null,null,null,null,null,null,null,null,null,"Γ10. Πώς προκύπτει ο αριθμός των ανάπηρων μελών;"]
[]
[null,null,null,null,null,null,null,null,null,null,null,null,null,null,null,null,null,null,null,null,null,null,null,null,null,null,"Όπως και όλα τα υπόλοιπα στοιχεία, θα προκύπτει από την εκκαθαρισμένη δήλωση φορολογίας εισοδήματος ή τυχόν τροποποιητικές της μέχρι 31/10/2018. "]
[]
[]
[]
[null,null,null,null,null,null,null,null,null,null,null,null,null,null,null,null,null,null,null,null,null,null,null,null,null,null,"Γ11. Τι να κάνω στην περίπτωση που με φιλοξενούσε άτομο που έχει αποβιώσει; "]
[]
[null,null,null,null,null,null,null,null,null,null,null,null,null,null,null,null,null,null,null,null,null,null,null,null,null,null,"Σε αυτή την περίπτωση, η πλατφόρμα αναγνωρίζει αυτόματα το πρόβλημα και επιτρέπει στους φιλοξενούμενους να κάνουν αίτηση, αρκεί να έχει δηλωθεί ο θάνατος στο ληξιαρχείο (οπότε και ενημερώνεται αυτόματα το μητρώο του ΑΜΚΑ). "]
[]
[]
[]
[null,null,null,null,null,null,null,null,null,null,null,null,null,null,null,null,null,null,null,null,null,null,null,null,null,null,"Γ12. Φιλοξενούσα ένα άτομο για δύο μήνες εντός του 2017. Εμφανίζεται σωστά στην αίτησή μου για το κοινωνικό μέρισμα; "]
[]
[null,null,null,null,null,null,null,null,null,null,null,null,null,null,null,null,null,null,null,null,null,null,null,null,null,null,"Το σύστημα δεν μετράει μήνες φιλοξενίας. Τουλάχιστον ένα μήνα να έχει φιλοξενηθεί κάποιος εντός του 2017 θεωρείται φιλοξενούμενος."]
[]
[]
[]
[null,null,null,null,null,null,null,null,null,null,null,null,null,null,null,null,null,null,null,null,null,null,null,null,null,null,"Γ13. Φιλοξενήθηκα για έναν μήνα το 2017. Μπορώ να κάνω αίτηση για το κοινωνικό μέρισμα; "]
[]
[null,null,null,null,null,null,null,null,null,null,null,null,null,null,null,null,null,null,null,null,null,null,null,null,null,null,"Το σύστημα δεν μετράει μήνες φιλοξενίας. Τουλάχιστον έναν μήνα να έχει φιλοξενηθεί κάποιος εντός του 2017 θεωρείται φιλοξενούμενος."]
[]
[]
[]
[null,null,null,null,null,null,null,null,null,null,null,null,null,null,null,null,null,null,null,null,null,null,null,null,null,null,"Γ14. Μπορεί να αφαιρεθεί φιλοξενούμενο μέλος που απεβίωσε το 2018;"]
[]
[null,null,null,null,null,null,null,null,null,null,null,null,null,null,null,null,null,null,null,null,null,null,null,null,null,null,"Τα φιλοξενούμενα μέλη που έχουν αποβιώσει αφαιρούνται αυτόματα από τη σύνθεση του νοικοκυριού αρκεί να έχει δηλωθεί ο θάνατος στο ληξιαρχείο (οπότε και ενημερώνεται αυτόματα το μητρώο του ΑΜΚΑ)."]
[]
[]
[]
[null,null,null,null,null,null,null,null,null,null,null,null,null,null,null,null,null,null,null,null,null,null,null,null,null,null,"Γ15. Φιλοξενούμενοι σε ιδρύματα μπορούν να κάνουν αίτηση; "]
[]
[null,null,null,null,null,null,null,null,null,null,null,null,null,null,null,null,null,null,null,null,null,null,null,null,null,null,"Οι φιλοξενούμενοι σε ιδρύματα, για τις ανάγκες του Κοινωνικού Μερίσματος, δεν λογίζονται ως φιλοξενούμενοι. Συνεπώς όσοι έχουν στο πεδίο της φιλοξενίας συμπληρώσει ΑΦΜ συλλογικού ιδρύματος δεν θα εμφανίζονται ως φιλοξενούμενοι. Επομένως, αυτοί μπορούν να κάνουν κανονικά αίτηση εφόσον έχουν κωδικούς taxis."]
[]
[]
[]
[null,null,null,null,null,null,null,null,null,null,null,null,null,null,null,null,null,null,null,null,null,null,null,null,null,null,"Γ16. Είμαι 70 ετών και άνω, έκανα αίτηση και πέρυσι, και ενώ πληρούσα τις προϋποθέσεις για το μέρισμα του 2017 δεν μου καταβλήθηκε. Τι πρέπει να κάνω φέτος;"]
[]
[null,null,null,null,null,null,null,null,null,null,null,null,null,null,null,null,null,null,null,null,null,null,null,null,null,null,"Το γεγονός ότι δεν σας καταβλήθηκε το μέρισμα πέρυσι πιθανώς ευθύνεται σε λάθος στοιχεία δικά σας ή του/της συνυπόχρεου. Σας προτρέπουμε να κάνετε αίτηση φέτος και να μην περιμένετε οίκοθεν καταβολή, προκειμένου να αποφευχθεί αντίστοιχο πρόβλημα με την περυσινή καταβολή. Το πιο συχνό πρόβλημα είναι ασυμφωνία του πεδίου του ΑΦΜ στο μητρώο του ΑΜΚΑ για τον υπόχρεο, τον/την σύζυγο. Στην πράξη αυτό σημαίνει ότι είτε το πεδίο είναι κενό είτε είναι συμπληρωμένο λάθος. Η διόρθωση θα πρέπει να γίνει στα ΚΕΠ. Δείτε επίσης την ερώτηση Α5."]
[]
[]
[]
[null,null,null,null,null,null,null,null,null,null,null,null,null,null,null,null,null,null,null,null,null,null,null,null,null,null,"Γ17. Η οικία που είναι δηλωμένη από το νοικοκυριό ανήκει σε ανήλικο μέλος που δεν μπορεί να αιτηθεί, ενώ τα υπόλοιπα μέλη είναι δηλωμένα ως φιλοξενούμενα. Μπορεί να γίνει αίτηση; "]
[]
[null,null,null,null,null,null,null,null,null,null,null,null,null,null,null,null,null,null,null,null,null,null,null,null,null,null,"Ναι μπορεί να γίνει αίτηση. Στην περίπτωση που η οικία ανήκει σε ανήλικο μέλος, τότε η αίτηση θα υποβληθεί από τον πρώτο ενήλικα φιλοξενούμενο ο οποίος θα θεωρείται και δικαιούχος.   "]
[]
[]
[]
[]
[]
[null,null,null,null,null,null,null,null,null,null,null,null,null,null,null,null,null,null,null,null,null,null,null,null,null,null,"Δ. Κριτήρια επιλεξιμότητας (εισόδημα, ακίνητη, καταθέσεις)"]
[]
[]
[]
[null,null,null,null,null,null,null,null,null,null,null,null,null,null,null,null,null,null,null,null,null,null,null,null,null,null,"Δ1. Τι λαμβάνεται υπόψη κατά τον υπολογισμό του εισοδήματος για το κοινωνικό μέρισμα;"]
[]
[null,null,null,null,null,null,null,null,null,null,null,null,null,null,null,null,null,null,null,null,null,null,null,null,null,null,"Λαμβάνεται υπόψη το σύνολο των εισοδημάτων είτε αυτά φορολογούνται κανονικά είτε απαλλάσσονται από το φόρο είτε φορολογούνται με ειδικό τρόπο, καθώς και το σύνολο των επιδομάτων και των κάθε μορφής χρηματικών μεταβιβάσεων όλων των μελών του νοικοκυριού. Ο υπολογισμός γίνεται προ φόρων, αφού έχουν αφαιρεθεί οι εισφορές κοινωνικής ασφάλισης."]
[]
[]
[null,null,null,null,null,null,null,null,null,null,null,null,null,null,null,null,null,null,null,null,null,null,null,null,null,null,"Δ2. Το επίδομα ανεργίας συνυπολογίζεται στο εισόδημα;"]
[]
[null,null,null,null,null,null,null,null,null,null,null,null,null,null,null,null,null,null,null,null,null,null,null,null,null,null,"Ναι, το επίδομα ανεργίας θεωρείται εισόδημα. "]
[]
[]
[]
[null,null,null,null,null,null,null,null,null,null,null,null,null,null,null,null,null,null,null,null,null,null,null,null,null,null,"Δ3. Είμαι δικαιούχος άλλου επιδόματος (οικογενιακού, ανεργίας, ΚΕΑ, κλπ). Μπορεί να διακοπεί η καταβολή των άλλων επιδομάτων εάν λάβω το κοινωνικό μέρισμα;"]
[]
[null,null,null,null,null,null,null,null,null,null,null,null,null,null,null,null,null,null,null,null,null,null,null,null,null,null,"Όχι. Το κοινωνικό μέρισμα δεν θα προσμετρηθεί στο εισόδημά σας για την καταβολή οποιουδήποτε επιδόματος."]
[]
[]
[]
[null,null,null,null,null,null,null,null,null,null,null,null,null,null,null,null,null,null,null,null,null,null,null,null,null,null,"Δ4. Εξαιρούνται τα αναπηρικά επιδόματα και οι αναπηρικές συντάξεις από τον υπολογισμό του εισοδήματος;"]
[]
[null,null,null,null,null,null,null,null,null,null,null,null,null,null,null,null,null,null,null,null,null,null,null,null,null,null,"Τα αναπηρικά επιδόματα και οι αναπηρικές συντάξεις συμπεριλαμβάνονται στον υπολογισμό του εισοδήματος. Ωστόσο, οι υψηλότερες ανάγκες των ατόμων με αναπηρία λαμβάνονται υπόψη κατά τον υπολογισμό του ισοδύναμου εισοδήματος (τα εισοδηματικά όρια και το ποσό της εισοδηματικής ενίσχυσης προσαυξάνονται κατά 50% για κάθε ανάπηρο μέλος στο νοικοκυριό). Συνεπώς, μεταξύ νοικοκυριών με την ίδια ακριβώς σύνθεση, ευνοούνται αυτά που περιλαμβάνουν μέλη με προβλήματα αναπηρίας.   "]
[]
[]
[]
[null,null,null,null,null,null,null,null,null,null,null,null,null,null,null,null,null,null,null,null,null,null,null,null,null,null,"Δ5. Στο νοικοκυριό μας εισπράξαμε κατά το έτος 2017 εισοδηματική ενίσχυση από το Κοινωνικό Εισόδημα Αλληλεγγύης. Συνυπολογίζεται το ποσό αυτό ως εισόδημα στην αίτηση του κοινωνικού μερίσματος; "]
[null,null,null,null,null,null,null,null,null,null,null,null,null,null,null,null,null,null,null,null,null,null,null,null,null,null,"Ναι, το ποσό αυτό συνυπολογίζεται ως εισόδημα. "]
[]
[]
[]
[null,null,null,null,null,null,null,null,null,null,null,null,null,null,null,null,null,null,null,null,null,null,null,null,null,null,"Δ6. Τι δεν θεωρείται εισόδημα για τον υπολογισμό του κοινωνικού μερίσματος;"]
[]
[null,null,null,null,null,null,null,null,null,null,null,null,null,null,null,null,null,null,null,null,null,null,null,null,null,null,"Η αποζημίωση απόλυσης, η διατροφή συζύγου και τέκνων για το νοικοκυριό που τη λαμβάνει, καθώς και οι περιπτώσεις που συμπληρώνονται στους κωδικούς 781-782 του εντύπου Ε1 (Χρηματικά ποσά που προέρχονται από διάθεση περιουσιακών στοιχείων, δάνεια, δωρεές, κλπ)."]
[]
[]
[]
[null,null,null,null,null,null,null,null,null,null,null,null,null,null,null,null,null,null,null,null,null,null,null,null,null,null,"Δ7. Τι συμβαίνει στην περίπτωση που πούλησα, μετά την 01/01/2018 ακίνητη περιουσία την οποία κατείχα το 2017;"]
[]
[null,null,null,null,null,null,null,null,null,null,null,null,null,null,null,null,null,null,null,null,null,null,null,null,null,null,"Η αίτηση απεικονίζει όλα τα στοιχεία της περιουσιακής σας κατάστασης όπως αυτή χρησιμοποιήθηκε κατά την εκκαθάριση του ΕΝΦΙΑ το έτος 2018. Η περιουσιακή κατάσταση δεν γίνεται να μεταβληθεί ακόμα και εάν έχει πραγματοποιηθεί πώληση περιουσίας μετά την 1/1/2018. "]
[]
[]
[]
[null,null,null,null,null,null,null,null,null,null,null,null,null,null,null,null,null,null,null,null,null,null,null,null,null,null,"Δ8. Πώς θα υπολογιστεί το σύνολο των καταθέσεών μου;"]
[]
[null,null,null,null,null,null,null,null,null,null,null,null,null,null,null,null,null,null,null,null,null,null,null,null,null,null,"Το ποσό των τόκων προκύπτει από την εκκαθαρισμένη δήλωση φορολογίας εισοδήματος ή τυχόν τροποποιητικές της μέχρι 31/10/2018 και δεν είναι δυνατό να αλλάξει. Βάσει του παραπάνω ποσού των τόκων εκτιμάται το ύψος των καταθέσεων, χρησιμοποιώντας το μέσο καταθετικό επιτόκιο του έτους 2017 βάσει των σχετικών στατιστικών στοιχείων της Τράπεζας της Ελλάδος.  "]
[]
[]
[]
[null,null,null,null,null,null,null,null,null,null,null,null,null,null,null,null,null,null,null,null,null,null,null,null,null,null,"Δ9. Είμαι συνδικαιούχος σε τραπεζικό λογαριασμό. Πώς θα υπολογιστούν οι καταθέσεις μου;  "]
[]
[null,null,null,null,null,null,null,null,null,null,null,null,null,null,null,null,null,null,null,null,null,null,null,null,null,null,"Σε αυτή την περίπτωση, οι τόκοι που είναι προσυμπληρωμένοι στη φορολογική δήλωση αφορούν το σύνολο του κατατεθειμένου ποσού, εκτός εάν σε συνεννόηση με τους λοιπούς συνδικαιούχους είχατε συμπληρώσει στη φορολογική δήλωση το ποσό που σας αναλογεί."]
[]
[]
[]
[null,null,null,null,null,null,null,null,null,null,null,null,null,null,null,null,null,null,null,null,null,null,null,null,null,null,"Δ10. Τι σημαίνει η αναφορά σε όσους έχουν δαπάνες για οδηγούς, οικιακούς βοηθούς, δασκάλους και λοιπό προσωπικό; "]
[]
[null,null,null,null,null,null,null,null,null,null,null,null,null,null,null,null,null,null,null,null,null,null,null,null,null,null,"Δεν δικαιούνται το κοινωνικό μέρισμα όσοι δηλώνουν δαπάνες που καταβάλλονται για οικιακούς βοηθούς, οδηγούς αυτοκινήτων, δασκάλους και λοιπό προσωπικό. Αυτό δεν ισχύει στην περίπτωση που ο φορολογούμενος απασχολεί έναν μόνο οικιακό βοηθό ή όταν ο φορολογούμενος ή πρόσωπο που συνοικεί με αυτόν και τον βαρύνει έχει αναπηρία εξήντα επτά τοις εκατό και πάνω (67%) ή είναι ηλικίας άνω των εξήντα πέντε (65) ετών και απασχολεί ένα νοσοκόμο, καθώς δεν έχει υποχρέωση συμπλήρωσης των ανωτέρω δαπανών στον κωδικό 770. "]
[]
[]
[]
[null,null,null,null,null,null,null,null,null,null,null,null,null,null,null,null,null,null,null,null,null,null,null,null,null,null,"Δ11. Υπαρχουν διαφορετικά εισοδηματικά όρια για νοικοκυριά με μονογονεϊκές οικογένειες; "]
[]
[null,null,null,null,null,null,null,null,null,null,null,null,null,null,null,null,null,null,null,null,null,null,null,null,null,null,"Για τα μονογονεϊκά νοικοκυριά δίνεται προσαύξηση 25%, τόσο στα εισοδηματικά όρια όσο και στο ποσό εισοδηματικής ενίσχυσης για το πρώτο ανήλικο τέκνο, αρκεί η μονογονεϊκή οικογένεια να λαμβάνει το επίδομα παιδιού, από το μητρώο του οποίου διασταυρώνεται αν πρόκειται για μονογονεϊκό νοικοκυριό."]
[]
[]
[]
[null,null,null,null,null,null,null,null,null,null,null,null,null,null,null,null,null,null,null,null,null,null,null,null,null,null,"Ε. Πιστοποίηση ανεργίας"]
[]
[]
[]
[null,null,null,null,null,null,null,null,null,null,null,null,null,null,null,null,null,null,null,null,null,null,null,null,null,null,"E1. Είμαι ή ήμουν άνεργος το 2018, αλλά δεν έχει αφαιρεθεί από τα εισοδήματά μου το ποσό που προβλέπει η υπουργική απόφαση. Τι συμβαίνει;  "]
[]
[null,null,null,null,null,null,null,null,null,null,null,null,null,null,null,null,null,null,null,null,null,null,null,null,null,null,"Μπορεί να μην έχετε συμπληρώσει 6 συνεχόμενους μήνες ανεργίας, όπως προβλέπει η υπουργική απόφαση, περίπτωση κατά την οποία δεν δικαιούστε μείωση των εισοδημάτων σας. "]
[]
[null,null,null,null,null,null,null,null,null,null,null,null,null,null,null,null,null,null,null,null,null,null,null,null,null,null,"Εάν έχετε συμπληρώσει 6 συνεχόμενους μήνες ανεργίας, υπάρχει κάποιο λάθος στα στοιχεία του ΟΑΕΔ, οπότε θα πρέπει να απευθυνθείτε στον ΟΑΕΔ για τη διόρθωση των στοιχείων σας. Στη συνέχεια, πρέπει να ξαναμπείτε στον διαδικτυακό τόπο www.koinonikomerisma.gr και να επαναλάβετε τη διαδικασία. Η διαδικασία θα πρέπει πάντως να ολοκληρωθεί εντός της σχετικής προθεσμίας υποβολής αιτήσεων."]
[]
[]
[]
[null,null,null,null,null,null,null,null,null,null,null,null,null,null,null,null,null,null,null,null,null,null,null,null,null,null,"E2. Ήμουν άνεργος για τουλάχιστον 6 συνεχόμενους μήνες το 2018, αλλά όχι πλέον. Δικαιούμαι την έκπτωση από τα εισοδήματα του 2017;  "]
[]
[null,null,null,null,null,null,null,null,null,null,null,null,null,null,null,null,null,null,null,null,null,null,null,null,null,null,"Ναι. Δεν είναι απαραίτητο να είστε άνεργος τη στιγμή υποβολής της αίτησης, εφόσον έχετε συμπληρώσει 6 συνεχόμενους μήνες ανεργίας εντός του έτους 2018."]
[]
[]
[]
[null,null,null,null,null,null,null,null,null,null,null,null,null,null,null,null,null,null,null,null,null,null,null,null,null,null,"E3. Ήμουν ελεύθερος επαγγελματίας κατά το έτος 2017, φορολογούμαι όμως ως μισθωτός και έχω τουλάχιστον 6 συνεχόμενους μήνες ανεργίας το 2018. Δικαιούμαι την έκπτωση στα εισοδήματα του 2017; "]
[]
[null,null,null,null,null,null,null,null,null,null,null,null,null,null,null,null,null,null,null,null,null,null,null,null,null,null,"Ναι, τη δικαιούστε. Από τη ρύθμιση εξαιρούνται μόνο οι ελεύθεροι επαγγελματίες που δεν φορολογούνται ως μισθωτοί."]
[]
[]
[]
[null,null,null,null,null,null,null,null,null,null,null,null,null,null,null,null,null,null,null,null,null,null,null,null,null,null,"E4. Είμαι άνεργος πρώην ασφαλισμένος ΝΑΤ ή ΕΤΑΠ-ΜΜΕ. Δικαιούμαι τη μείωση στα εισοδήματα μου; "]
[]
[null,null,null,null,null,null,null,null,null,null,null,null,null,null,null,null,null,null,null,null,null,null,null,null,null,null,"Δικαιούστε τη μείωση. Θα γίνει διασταύρωση από την ΗΔΙΚΑ με τα μητρώα ανέργων που τηρούν τα εν λόγω ταμεία αντί του ΟΑΕΔ. Εάν δεν φαίνονται οι μήνες ανεργίας σας μπορείτε να απευθυνθείτε στο ταμείο σας και να ξαναπροσπαθήσετε λίγες μέρες αργότερα.  "]
[]
[]
[]
[null,null,null,null,null,null,null,null,null,null,null,null,null,null,null,null,null,null,null,null,null,null,null,null,null,null,"ΣΤ. Πιστοποίηση ασφάλισης (ΕΦΚΑ και άλλα ταμειά)"]
[]
[]
[]
[null,null,null,null,null,null,null,null,null,null,null,null,null,null,null,null,null,null,null,null,null,null,null,null,null,null,"ΣΤ1. Οι συνταξιούχοι που δεν έχουν ασφάλιση (π.χ. χήρες συνταξιούχων) δικαιούνται να υποβάλλουν αίτηση;"]
[]
[null,null,null,null,null,null,null,null,null,null,null,null,null,null,null,null,null,null,null,null,null,null,null,null,null,null,"Ναι, γιατί είναι δικαιούχοι σύνταξης. Το ίδιο ισχύει και για όσους λαμβάνουν τη σύνταξη των ανασφάλιστων υπερηλίκων."]
[]
[]
[]
[null,null,null,null,null,null,null,null,null,null,null,null,null,null,null,null,null,null,null,null,null,null,null,null,null,null,"ΣΤ2. Στη φορολογική δήλωση του 2017 δικαιούμαι μείωση φόρου λόγω αναπηρίας. Τα κριτήρια για το κοινωνικό μέρισμα διαφέρουν στην περίπτωση μου; "]
[]
[null,null,null,null,null,null,null,null,null,null,null,null,null,null,null,null,null,null,null,null,null,null,null,null,null,null,"Ναι, διαφέρουν. Η προϋπόθεση του τουλάχιστον ενός μήνα ασφάλισης για την καταβολή του μερίσματος δεν ισχύει στην περίπτωση σας. Επιπλέον, τα εισοδηματικά όρια και το ποσό της εισοδηματικής ενίσχυσης προσαυξάνονται κατά 50% για κάθε ανάπηρο μέλος στο νοικοκυριό σας. "]
[]
[]
[]
[null,null,null,null,null,null,null,null,null,null,null,null,null,null,null,null,null,null,null,null,null,null,null,null,null,null,"ΣΤ3. Υπό ποιες περιπτώσεις εξαιρούμαι από το κριτήριο υποχρεωτικής ασφάλισης; "]
[]
[null,null,null,null,null,null,null,null,null,null,null,null,null,null,null,null,null,null,null,null,null,null,null,null,null,null,"Το κριτήριο της υποχρεωτικής ασφάλισης τουλάχιστον μία φορά σε οποιονδήποτε φορέα κύριας ασφάλισης και για χρόνο ασφάλισης μεγαλύτερο του ενός (1) μήνα μέχρι 31.10.2018 δεν ισχύει για τις εξής περιπτώσεις: α) για δικαιούχους 67 ετών και άνω, β) για νοικοκυριά στα οποία ο δικαιούχος ή ο συνυπόχρεος, εφόσον υπάρχει, είναι πρόσωπα με ποσοστό αναπηρίας 67% και άνω, γ) για μονογονεϊκά νοικοκυριά στα οποία ένα τουλάχιστον μέλος είναι πρόσωπο με ποσοστό αναπηρίας 67% και άνω (κωδικοί εντύπου Ε1: 001, 002, 005, 006, 905, 906, 913 και 914)."]
[]
[]
[]
[null,null,null,null,null,null,null,null,null,null,null,null,null,null,null,null,null,null,null,null,null,null,null,null,null,null,"Ζ. Αχρεωστήτως- Επιστροφή"]
[]
[]
[]
[null,null,null,null,null,null,null,null,null,null,null,null,null,null,null,null,null,null,null,null,null,null,null,null,null,null,"Ζ1. Μου έχει καταβληθεί το ποσό του μερίσματος είτε από λάθος είτε χωρίς να έχω κάνει αίτηση. Τι πρέπει να κάνω; "]
[]
[null,null,null,null,null,null,null,null,null,null,null,null,null,null,null,null,null,null,null,null,null,null,null,null,null,null,"Είναι δυνατή η οικειοθελής επιστροφή από τον λαβόντα του πιστωθέντος στον τραπεζικό του λογαριασμό ποσού κοινωνικού μερίσματος, με την κατάθεσή του στον λογαριασμό του ελληνικού Δημοσίου που τηρείται στην Τράπεζα της Ελλάδος [Νο  200211 (GR71 0100 0230 0000 0000 0200 211)]. Ως αιτιολογία θα πρέπει να αναγράφεται «επιστροφή κοινωνικού μερίσματος»"]
[]
[]
[]
[null,null,null,null,null,null,null,null,null,null,null,null,null,null,null,null,null,null,null,null,null,null,null,null,null,null,"Υποστήριξη πολιτών – Υποβολή ερωτημάτων"]
[]
[null,null,null,null,null,null,null,null,null,null,null,null,null,null,null,null,null,null,null,null,null,null,null,null,null,null,"Για την υποστήριξη της εφαρμογής του κοινωνικού μερίσματος οι πολίτες μπορούν να αναφέρουν τα προβλήματα που αντιμετωπίζουν στην ακόλουθη διεύθυνση ηλεκτρονικού ταχυδρομείου: info@koinonikomerisma.gr."]
[]
[null,null,null,null,null,null,null,null,null,null,null,null,null,null,null,null,null,null,null,null,null,null,null,null,null,null,"Οι ερωτήσεις θα ομαδοποιούνται και οι απαντήσεις θα προστίθενται στην σελίδα των Συχνών Ερωτήσεων: https://www.koinonikomerisma.gr/Home/Info."]
[]
[null,null,null,null,null,null,null,null,null,null,null,null,null,null,null,null,null,null,null,null,null,null,null,null,null,null,"Τα τεχνικά προβλήματα θα επιλύονται το συντομότερο δυνατό, οπότε και οι πολίτες που δεν κατάφεραν να ολοκληρώσουν την αίτησή τους θα πρέπει να δοκιμάσουν να την επανυποβάλλουν μετά από μερικές μέρες και εντός πάντα της σχετικής προθεσμίας υποβολής αιτήσεων."]
[]
[]
[]
[null,null,null,null,null,null,null,null,null,null,null,null,null,null,null,null,null,null,null,null,null,null,null,null,null,null,"Πηγή: Taxheaven © Δείτε περισσότερα https://www.taxheaven.gr/news/news/view/id/43083"]